Workbook

Sheet 1. Info
AA1: Revenue Requirement Workform (RRWF) for 2021 Filers | AC1: =IF('3. Data_Input_Sheet'!M12=0, "", '3. Data_Input_Sheet'!M12) -> Settlement Agreement
AA2: 1
P11: Version | Q11: =$AA$2 -> 1
F16: Utility Name | G16: Waterloo North Hydro Inc.
F18: Service Territory
F20: Assigned EB Number | G20: EB-2020-0059 | AA20: Company Name
Z21: 1 | AA21: Alectra Utilities Corporation-Brampton Rate Zone
F22: Name and Title | G22: Albert P. Singh, VP Finance & CFO | Z22: 2 | AA22: Alectra Utilities Corporation-Enersource Rate Zone
Z23: 3 | AA23: Alectra Utilities Corporation-Horizon Utilities Rate Zone
F24: Phone Number | G24: 519-888-5542 | Z24: 4 | AA24: Alectra Utilities Corporation-PowerStream Rate Zone
Z25: 5 | AA25: Alectra Utilities Corporation-Guelph Rate Zone
F26: Email Address | G26: asingh@wnhydro.com | Z26: 6 | AA26: Algoma Power Inc.
Z27: 7 | AA27: Atikokan Hydro Inc.
E28: Test Year | G28: 2021 | Z28: 8 | AA28: Bluewater Power Distribution Corporation
Z29: 9 | AA29: Brantford Power Inc.
E30: Bridge Year | G30: 2020 | Z30: 10 | AA30: Burlington Hydro Inc.
Z31: 11 | AA31: Canadian Niagara Power Inc.
E32: Last Rebasing Year | G32: 2016 | Z32: 12 | AA32: Centre Wellington Hydro Ltd.
Z33: 13 | AA33: Chapleau Public Utilities Corporation
Z34: 14 | AA34: Cooperative Hydro Embrun Inc.
Z35: 15 | AA35: E.L.K. Energy Inc.
Z36: 16 | AA36: Elexicon Energy Inc.-Whitby Rate Zone
A37: The RRWF has been enhanced commencing with 2017 rate applications to provide estimated base distribution rates. The enhanced RRWF is not intended to replace a utility’s formal rate generator model which should continue to be the source of the proposed rates as well as the final ones at the conclusion of the proceeding. The load forecasting addition made to this model is intended to be demonstrative only and does not replace the information filed in the utility’s application. In an effort to minimize the incremental work required from utilities, the cost allocation and rate design additions to this model do in fact replace former appendices that were required to be filed as part of the cost of service (Chapter 2) filing requirements. | Z37: 17 | AA37: Elexicon Energy Inc.-Veridian Rate Zone
Z38: 18 | AA38: Energy+ Inc.
Z39: 19 | AA39: Entegrus Powerlines Inc.-For Entegrus-Main Rate Zone
Z40: 20 | AA40: Entegrus Powerlines Inc.-For Former St. Thomas Energy Rate Zone
Z41: 21 | AA41: ENWIN Utilities Ltd.
Z42: 22 | AA42: EPCOR Electricity Distribution Ontario Inc.
Z43: 23 | AA43: ERTH Power Corporation - ERTH Power Main Rate Zone
Z44: 24 | AA44: ERTH POWER CORPORATION – GODERICH RATE ZONE
Z45: 25 | AA45: Essex Powerlines Corporation
Z46: 26 | AA46: Festival Hydro Inc.
Z47: 27 | AA47: Fort Frances Power Corporation
Z48: 28 | AA48: Greater Sudbury Hydro Inc.
Z49: 29 | AA49: Grimsby Power Incorporated
Z50: 30 | AA50: Halton Hills Hydro Inc.
Z51: 31 | AA51: Hearst Power Distribution Co. Ltd.
Z52: 32 | AA52: Hydro 2000 Inc.
Z53: 33 | AA53: Hydro Hawkesbury Inc.
Z54: 34 | AA54: Hydro One Networks Inc.
Z55: 35 | AA55: Hydro One Networks Inc.-Former Haldimand County Hydro Inc. Service Area
Z56: 36 | AA56: Hydro One Networks Inc.-Former Norfolk Power Distribution Inc. Service Area
Z57: 37 | AA57: Hydro One Networks Inc.-Former Woodstock Hydro Services Inc. Service Area
Z58: 38 | AA58: Hydro One Remote Communites Inc.
Z59: 39 | AA59: Hydro Ottawa Limited
Z60: 40 | AA60: InnPower Corporation
Z61: 41 | AA61: Kingston Hydro Corporation
Z62: 42 | AA62: Kitchener-Wilmot Hydro Inc.
Z63: 43 | AA63: Lakefront Utilities Inc.
Z64: 44 | AA64: Lakeland Power Distribution Ltd.
Z65: 45 | AA65: Lakeland Power Distribution Ltd.-Parry Sound Service Area
Z66: 46 | AA66: London Hydro Inc.
Z67: 47 | AA67: Milton Hydro Distribution Inc.
Z68: 48 | AA68: Newmarket-Tay Power Distribution Ltd.-For Former Midland Power Utility Rate Zone
Z69: 49 | AA69: Newmarket-Tay Power Distribution Ltd.-For Newmarket-Tay Power Main Rate Zone
Z70: 50 | AA70: Niagara Peninsula Energy Inc.
Z71: 51 | AA71: Niagara-on-the-Lake Hydro Inc.
Z72: 52 | AA72: North Bay Hydro Distribution Limited - Espanola service territory
Z73: 53 | AA73: North Bay Hydro Distribution Limited - North Bay service territory
Z74: 54 | AA74: Northern Ontario Wires Inc.
Z75: 55 | AA75: Oakville Hydro Electricity Distribution Inc.
Z76: 56 | AA76: Orangeville Hydro Limited
Z77: 57 | AA77: Orillia Power Distribution Corporation
Z78: 58 | AA78: Oshawa PUC Networks Inc.
Z79: 59 | AA79: Ottawa River Power Corporation
Z80: 60 | AA80: Peterborough Distribution Incorporated
Z81: 61 | AA81: PUC Distribution Inc.
Z82: 62 | AA82: Renfrew Hydro Inc.
Z83: 63 | AA83: Rideau St. Lawrence Distribution Inc.
Z84: 64 | AA84: Sioux Lookout Hydro Inc.
Z85: 65 | AA85: Synergy North Corporation-Kenora Rate Zone
Z86: 66 | AA86: Synergy North Corporation-Thunder Bay Rate Zone
Z87: 67 | AA87: Tillsonburg Hydro Inc.
Z88: 68 | AA88: Toronto Hydro-Electric System Limited
Z89: 69 | AA89: Wasaga Distribution Inc.
Z90: 70 | AA90: Waterloo North Hydro Inc.
Z91: 71 | AA91: Welland Hydro-Electric System Corp.
Z92: 72 | AA92: Wellington North Power Inc.
Z93: 73 | AA93: Westario Power Inc.

Sheet 2. Table of Contents
D11: 1. Info | I11: 8. Rev_Def_Suff
D13: 2. Table of Contents | I13: 9. Rev_Reqt
D15: 3. Data_Input_Sheet | I15: 10. Load Forecast
D17: 4. Rate_Base | I17: 11. Cost Allocation
D19: 5. Utility Income | I19: 12. Residential Rate Design
D21: 6. Taxes_PILs | I21: 13. Rate Design and Revenue Reconciliation
D23: 7. Cost_of_Capital | I23: 14. Tracking Sheet
A25: Notes:
A26: (1) | B26: Pale green cells represent inputs
A27: (2) | B27: Pale green boxes at the bottom of each page are for additional notes
A28: (3) | B28: Pale yellow cells represent drop-down lists
A29: (4) | B29: Please note that this model uses MACROS. Before starting, please ensure that macros have been enabled.
A30: (5) | B30: Completed versions of the Revenue Requirement Work Form are required to be filed in working Microsoft Excel format.

Sheet 3. Data_Input_Sheet
U1: =CONCATENATE('2. Table of Contents'!$F$6," ",'2. Table of Contents'!$G$6) -> 
B9: Data Input (1)
E12: Initial Application | G12: (2) | I12: =IF(ISBLANK(M12),"","Adjustments") -> Adjustments | M12: Settlement Agreement | O12: (6) | Q12: =IF(ISBLANK(M12),"","Adjustments") -> Adjustments | U12: Per Board Decision
B15: 1 | C15: Rate Base
C16: Gross Fixed Assets (average) | E16: 421683875 | I16: -1161034 | K16: (10) | M16: =IF(ISBLANK(E16),0,E16+I16) -> 420522841 | O16: (22) | U16: =IF(ISBLANK(E16),"",E16+I16+Q16) -> 420522841
C17: Accumulated Depreciation (average) | E17: -193127986 | G17: (5) | I17: 2057342 | K17: (10) | M17: =IF(ISBLANK(E17),0,E17+I17) -> -191070644 | O17: (21, 22) | U17: =IF(ISBLANK(E17),"",E17+I17+Q17) -> -191070644
C18: Allowance for Working Capital:
C19: Controllable Expenses | E19: 15524190 | I19: =72343+10000+5668-5000+49815-775000+53753 -> -588421 | K19: (11) | M19: =IF(ISBLANK(E19),0,E19+I19) -> 14935769 | O19: (17, 19-20) | U19: =IF(ISBLANK(E19),"",E19+I19+Q19) -> 14935769
C20: Cost of Power | E20: 199535876 | I20: -25481643 | K20: (12) | M20: =IF(ISBLANK(E20),0,E20+I20) -> 174054233 | O20: (17, 18, 23) | U20: =IF(ISBLANK(E20),"",E20+I20+Q20) -> 174054233
C21: Working Capital Rate (%) | E21: 0.075 | G21: (9) | I21: =IF(ISBLANK(M21),"",IF(ISBLANK(E21),"",M21-E21)) -> 0 | M21: 0.075 | O21: (9) | Q21: =IF(ISBLANK(U21),"",IF(ISBLANK(M21),"",U21-M21)) ->  | W21: (9)
B23: 2 | C23: Utility Income
C24: Operating Revenues:
C25: Distribution Revenue at Current Rates | E25: 36673723 | I25: =IF(ISBLANK(M25),"",IF(ISBLANK(E25),"",M25-E25)) -> 76752 | M25: 36750475 | O25: (13), (18) | Q25: =IF(ISBLANK(U25),"",IF(ISBLANK(M25),"",U25-M25)) -> 
C26: Distribution Revenue at Proposed Rates | E26: =36673723+2624364 -> 39298087 | I26: =IF(ISBLANK(M26),"",IF(ISBLANK(E26),"",M26-E26)) -> -1764747.898 | M26: 37533339.1 | O26: (16, 17-23) | Q26: =IF(ISBLANK(U26),"",IF(ISBLANK(M26),"",U26-M26)) -> 
C27: Other Revenue:
C28: Specific Service Charges | E28: 382269 | I28: =IF(ISBLANK(M28),"",IF(ISBLANK(E28),"",M28-E28)) -> 49815 | M28: =382269+49815 -> 432084 | O28: (19) | Q28: =IF(ISBLANK(U28),"",IF(ISBLANK(M28),"",U28-M28)) -> 
C29: Late Payment Charges | E29: 144453 | I29: =IF(ISBLANK(M29),"",IF(ISBLANK(E29),"",M29-E29)) -> 0 | M29: 144453 | Q29: =IF(ISBLANK(U29),"",IF(ISBLANK(M29),"",U29-M29)) -> 
C30: Other Distribution Revenue | E30: =1385932+172012 -> 1557944 | I30: =IF(ISBLANK(M30),"",IF(ISBLANK(E30),"",M30-E30)) -> -10863 | M30: 1547081 | O30: (14, 21) | Q30: =IF(ISBLANK(U30),"",IF(ISBLANK(M30),"",U30-M30)) -> 
C31: Other Income and Deductions | E31: =764470-749397+95929+55000 -> 166002 | I31: =IF(ISBLANK(M31),"",IF(ISBLANK(E31),"",M31-E31)) -> 0 | M31: =764470-749397+95929+55000 -> 166002 | Q31: =IF(ISBLANK(U31),"",IF(ISBLANK(M31),"",U31-M31)) -> 
D33: Total Revenue Offsets | E33: 2250668 | G33: (7) | I33: =IF(ISBLANK(M33),"",IF(ISBLANK(E33),"",M33-E33)) -> 38952 | M33: =SUM(M28:M31) -> 2289620 | Q33: =IF(ISBLANK(U33),"",IF(ISBLANK(M33),"",U33-M33)) -> 
C35: Operating Expenses:
C36: OM+A Expenses | E36: =7515225+8213832+48000 -> 15777057 | I36: =72343+10000-5000+49815-775000 -> -647842 | K36: (11, 17, 19, 20) | M36: =IF(ISBLANK(E36),"",E36+I36) -> 15129215 | U36: =IF(ISBLANK(E36),"",E36+I36+Q36) -> 15129215
C37: Depreciation/Amortization | E37: 11100527 | I37: -355203 | K37: (10, 21) | M37: =IF(ISBLANK(E37),"",E37+I37) -> 10745324 | U37: =IF(ISBLANK(E37),"",E37+I37+Q37) -> 10745324
C38: Property taxes | E38: 471620 | M38: =IF(ISBLANK(E38),"",E38+I38) -> 471620 | U38: =IF(ISBLANK(E38),"",E38+I38+Q38) -> 471620
C39: Capital taxes | M39: =IF(ISBLANK(M48),"",M48) ->  | U39: =IF(ISBLANK(U48),"",U48) -> 
C40: Other expenses | M40: =IF(ISBLANK(E40),"",E40+I40) ->  | U40: =IF(ISBLANK(E40),"",E40+I40+Q40) -> 
B42: 3 | C42: Taxes/PILs
C43: Taxable Income:
D44: Adjustments required to arrive at taxable income | E44: -5676173 | G44: (3) | I44: =IF(ISBLANK(M44),"",IF(ISBLANK(E44),"",M44-E44)) -> -412836 | M44: -6089009 | O44: (15, 21, 22) | Q44: =IF(ISBLANK(U44),"",IF(ISBLANK(M44),"",U44-M44)) -> 
C45: Utility Income Taxes and Rates:
C46: Income taxes (not grossed up) | E46: 653653 | I46: =IF(ISBLANK(M46),"",IF(ISBLANK(E46),"",M46-E46)) -> -189256 | M46: 464397 | O46: (15, 17-23) | Q46: =IF(ISBLANK(U46),"",IF(ISBLANK(M46),"",U46-M46)) -> 
C47: Income taxes (grossed up) | E47: =IF(ISBLANK(E46),"",E46/(1-SUM(E49:E50))) -> 889323.8095 | M47: =IF(ISBLANK(M46),"",M46/(1-SUM(M49:M50))) -> 631832.6531 | U47: =IF(ISBLANK(U46),"",U46/(1-SUM(U49:U50))) -> 
C48: Capital Taxes
C49: Federal tax (%) | E49: 0.15 | I49: =IF(ISBLANK(M49),"",IF(ISBLANK(E49),"",M49-E49)) -> 0 | M49: 0.15 | Q49: =IF(ISBLANK(U49),"",IF(ISBLANK(M49),"",U49-M49)) -> 
C50: Provincial tax (%) | E50: 0.115 | I50: =IF(ISBLANK(M50),"",IF(ISBLANK(E50),"",M50-E50)) -> 0 | M50: 0.115 | Q50: =IF(ISBLANK(U50),"",IF(ISBLANK(M50),"",U50-M50)) -> 
C51: Income Tax Credits | E51: =-3717-48247 -> -51964 | I51: =IF(ISBLANK(M51),"",IF(ISBLANK(E51),"",M51-E51)) -> -23807 | M51: -75771 | O51: (15) | Q51: =IF(ISBLANK(U51),"",IF(ISBLANK(M51),"",U51-M51)) -> 
B53: 4 | C53: Capitalization/Cost of Capital
C54: Capital Structure:
C55: Long-term debt Capitalization Ratio (%) | E55: 0.56 | I55: =IF(ISBLANK(M55),"",IF(ISBLANK(E55),"",M55-E55)) -> 0 | M55: 0.56 | Q55: =IF(ISBLANK(U55),"",IF(ISBLANK(M55),"",U55-M55)) -> 
C56: Short-term debt Capitalization Ratio (%) | E56: 0.04 | G56: (8) | I56: =IF(ISBLANK(M56),"",IF(ISBLANK(E56),"",M56-E56)) -> 0 | M56: 0.04 | O56: (8) | Q56: =IF(ISBLANK(U56),"",IF(ISBLANK(M56),"",U56-M56)) ->  | W56: (8)
C57: Common Equity Capitalization Ratio (%) | E57: 0.4 | I57: =IF(ISBLANK(M57),"",IF(ISBLANK(E57),"",M57-E57)) -> 0 | M57: 0.4 | Q57: =IF(ISBLANK(U57),"",IF(ISBLANK(M57),"",U57-M57)) -> 
C58: Prefered Shares Capitalization Ratio (%) | E58: 0 | I58: =IF(ISBLANK(M58),"",IF(ISBLANK(E58),"",M58-E58)) -> 0 | M58: 0 | Q58: =IF(ISBLANK(U58),"",IF(ISBLANK(M58),"",U58-M58)) -> 
E59: =SUM(E55:E58) -> 1 | M59: =SUM(M55:M58) -> 1 | U59: =SUM(U55:U58) -> 0
E60: =IF(ISBLANK(E57),"",IF(SUM(E55:E58)=100%,"","Capital Structure must total 100%")) ->  | M60: =IF(ISBLANK(M57),"",IF(SUM(M55:M58)=100%,"","Capital Structure must total 100%")) ->  | U60: =IF(ISBLANK(U57),"",IF(SUM(U55:U58)=100%,"","Capital Structure must total 100%")) -> 
C61: Cost of Capital
C62: Long-term debt Cost Rate (%) | E62: 0.03431662339 | I62: =IF(ISBLANK(M62),"",IF(ISBLANK(E62),"",M62-E62)) -> -0.0009880032248 | M62: 0.03332862016 | Q62: =IF(ISBLANK(U62),"",IF(ISBLANK(M62),"",U62-M62)) -> 
C63: Short-term debt Cost Rate (%) | E63: 0.0275 | I63: =IF(ISBLANK(M63),"",IF(ISBLANK(E63),"",M63-E63)) -> -0.01 | M63: 0.0175 | Q63: =IF(ISBLANK(U63),"",IF(ISBLANK(M63),"",U63-M63)) -> 
C64: Common Equity Cost Rate (%) | E64: 0.0852 | I64: =IF(ISBLANK(M64),"",IF(ISBLANK(E64),"",M64-E64)) -> -0.0018 | M64: 0.0834 | Q64: =IF(ISBLANK(U64),"",IF(ISBLANK(M64),"",U64-M64)) -> 
C65: Prefered Shares Cost Rate (%) | E65: 0 | I65: =IF(ISBLANK(M65),"",IF(ISBLANK(E65),"",M65-E65)) -> 0 | M65: 0 | Q65: =IF(ISBLANK(U65),"",IF(ISBLANK(M65),"",U65-M65)) -> 
A68: Notes:
B69: General | C69: Data inputs are required on Sheets 3. Data from Sheet 3 will automatically complete calculations on sheets 4 through 9 (Rate Base through Revenue Requirement). Sheets 4 through 9 do not require any inputs except for notes that the Applicant may wish to enter to support the results. Pale green cells are available on sheets 4 through 9 to enter both footnotes beside key cells and the related text for the notes at the bottom of each sheet.
B70: (1) | C70: All inputs are in dollars ($) except where inputs are individually identified as percentages (%)
B71: (2) | C71: Data in column E is for Application as originally filed. For updated revenue requirement as a result of interrogatory responses, technical or settlement conferences, etc., use column M and Adjustments in column I
B72: (3) | C72: Net of addbacks and deductions to arrive at taxable income.
B73: (4) | C73: Average of Gross Fixed Assets at beginning and end of the Test Year
B74: (5) | C74: Average of Accumulated Depreciation at the beginning and end of the Test Year. Enter as a negative amount.
B75: (6) | C75: Select option from drop-down list by clicking on cell M12. This column allows for the application update reflecting the end of discovery or Argument-in-Chief. Also, the outcome of any Settlement Process can be reflected.
B76: (7) | C76: Input total revenue offsets for deriving the base revenue requirement from the service revenue requirement
B77: (8) | C77: 4.0% unless an Applicant has proposed or been approved for another amount.
B78: (9) | C78: The default Working Capital Allowance factor is 7.5% (of Cost of Power plus controllable expenses), per the letter issued by the Board on June 3, 2015. Alternatively, a WCA factor based on lead-lag study, with supporting rationale could be provided.
B80: (10) - (16) | C80: Interrogatory Adjustments - Please refer to Waterloo_IRR_Rev_Reqt_Workform_2021_COS_20200928
B81: (17) | C81: Pre-settlement updates: 4-Staff-100 OM&A reduction, SEC-73 OER inclusion, related PILs adjustment
B82: (18) | C82: Settlement: VECC-63 correction to CDM activity variable in Load Forecast
B83: (19) | C83: Settlement: Reclassify disconnect/reconnect specific service charges from OM&A to Other Revenue
B84: (20) | C84: Settlement: Reduction to 2021 OM&A of $775,000
B85: (21) | C85: Settlement: Change to half-year rule for depreciation (fixed assets & capital contributions/deferred revenue)
B86: (22) | C86: Settlement: Reduction to 2021 CAPEX of $550,000
B87: (23) | C87: Settlement: OER & RPP rate update to Cost of Power

Sheet Hidden_Data Input (hidden)
A1: Utility Name | B1: EB Number | C1: Test Year | D1: Bridge Year | E1: Last Rebasing Year | F1: Data Elements | G1: Heading | H1: Intital Application | I1: Per Board Decision
A2: ='1. Info'!$G$16 -> Waterloo North Hydro Inc. | B2: ='1. Info'!$G$20 -> EB-2020-0059 | C2: ='1. Info'!$G$28 -> 2021 | D2: ='1. Info'!$G$30 -> 2020 | E2: ='1. Info'!$G$32 -> 2016 | F2: Gross Fixed Assets (average) | G2: Rate Base | H2: ='3. Data_Input_Sheet'!E16 -> 421683875 | I2: ='3. Data_Input_Sheet'!U16 -> 420522841
A3: ='1. Info'!$G$16 -> Waterloo North Hydro Inc. | B3: ='1. Info'!$G$20 -> EB-2020-0059 | C3: ='1. Info'!$G$28 -> 2021 | D3: ='1. Info'!$G$30 -> 2020 | E3: ='1. Info'!$G$32 -> 2016 | F3: Accumulated Depreciation (average) | G3: Rate Base | H3: ='3. Data_Input_Sheet'!E17 -> -193127986 | I3: ='3. Data_Input_Sheet'!U17 -> -191070644
A4: ='1. Info'!$G$16 -> Waterloo North Hydro Inc. | B4: ='1. Info'!$G$20 -> EB-2020-0059 | C4: ='1. Info'!$G$28 -> 2021 | D4: ='1. Info'!$G$30 -> 2020 | E4: ='1. Info'!$G$32 -> 2016 | F4: Controllable Expenses | G4: Allowance for Working Capital | H4: ='3. Data_Input_Sheet'!E19 -> 15524190 | I4: ='3. Data_Input_Sheet'!U19 -> 14935769
A5: ='1. Info'!$G$16 -> Waterloo North Hydro Inc. | B5: ='1. Info'!$G$20 -> EB-2020-0059 | C5: ='1. Info'!$G$28 -> 2021 | D5: ='1. Info'!$G$30 -> 2020 | E5: ='1. Info'!$G$32 -> 2016 | F5: Cost of Power | G5: Allowance for Working Capital | H5: ='3. Data_Input_Sheet'!E20 -> 199535876 | I5: ='3. Data_Input_Sheet'!U20 -> 174054233
A6: ='1. Info'!$G$16 -> Waterloo North Hydro Inc. | B6: ='1. Info'!$G$20 -> EB-2020-0059 | C6: ='1. Info'!$G$28 -> 2021 | D6: ='1. Info'!$G$30 -> 2020 | E6: ='1. Info'!$G$32 -> 2016 | F6: Working Capital Rate (%) | G6: Allowance for Working Capital | H6: ='3. Data_Input_Sheet'!E21 -> 0.075 | I6: ='3. Data_Input_Sheet'!U21 -> 0
A7: ='1. Info'!$G$16 -> Waterloo North Hydro Inc. | B7: ='1. Info'!$G$20 -> EB-2020-0059 | C7: ='1. Info'!$G$28 -> 2021 | D7: ='1. Info'!$G$30 -> 2020 | E7: ='1. Info'!$G$32 -> 2016 | F7: Distribution Revenue at Current Rates | G7: Utility Income | H7: ='3. Data_Input_Sheet'!E25 -> 36673723 | I7: ='3. Data_Input_Sheet'!U25 -> 0
A8: ='1. Info'!$G$16 -> Waterloo North Hydro Inc. | B8: ='1. Info'!$G$20 -> EB-2020-0059 | C8: ='1. Info'!$G$28 -> 2021 | D8: ='1. Info'!$G$30 -> 2020 | E8: ='1. Info'!$G$32 -> 2016 | F8: Distribution Revenue at Proposed Rates | G8: Utility Income | H8: ='3. Data_Input_Sheet'!E26 -> 39298087 | I8: ='3. Data_Input_Sheet'!U26 -> 0
A9: ='1. Info'!$G$16 -> Waterloo North Hydro Inc. | B9: ='1. Info'!$G$20 -> EB-2020-0059 | C9: ='1. Info'!$G$28 -> 2021 | D9: ='1. Info'!$G$30 -> 2020 | E9: ='1. Info'!$G$32 -> 2016 | F9: Specific Service Charges | G9: Other Revenue | H9: ='3. Data_Input_Sheet'!E28 -> 382269 | I9: ='3. Data_Input_Sheet'!U28 -> 0
A10: ='1. Info'!$G$16 -> Waterloo North Hydro Inc. | B10: ='1. Info'!$G$20 -> EB-2020-0059 | C10: ='1. Info'!$G$28 -> 2021 | D10: ='1. Info'!$G$30 -> 2020 | E10: ='1. Info'!$G$32 -> 2016 | F10: Late Payment Charges | G10: Other Revenue | H10: ='3. Data_Input_Sheet'!E29 -> 144453 | I10: ='3. Data_Input_Sheet'!U29 -> 0
A11: ='1. Info'!$G$16 -> Waterloo North Hydro Inc. | B11: ='1. Info'!$G$20 -> EB-2020-0059 | C11: ='1. Info'!$G$28 -> 2021 | D11: ='1. Info'!$G$30 -> 2020 | E11: ='1. Info'!$G$32 -> 2016 | F11: Other Distribution Revenue | G11: Other Revenue | H11: ='3. Data_Input_Sheet'!E30 -> 1557944 | I11: ='3. Data_Input_Sheet'!U30 -> 0
A12: ='1. Info'!$G$16 -> Waterloo North Hydro Inc. | B12: ='1. Info'!$G$16 -> Waterloo North Hydro Inc. | C12: ='1. Info'!$G$16 -> Waterloo North Hydro Inc. | D12: ='1. Info'!$G$16 -> Waterloo North Hydro Inc. | E12: ='1. Info'!$G$16 -> Waterloo North Hydro Inc. | F12: Other Income and Deductions | G12: Other Revenue | H12: ='3. Data_Input_Sheet'!E31 -> 166002 | I12: ='3. Data_Input_Sheet'!U31 -> 0
A13: ='1. Info'!$G$16 -> Waterloo North Hydro Inc. | B13: ='1. Info'!$G$16 -> Waterloo North Hydro Inc. | C13: ='1. Info'!$G$16 -> Waterloo North Hydro Inc. | D13: ='1. Info'!$G$16 -> Waterloo North Hydro Inc. | E13: ='1. Info'!$G$16 -> Waterloo North Hydro Inc. | F13: Total Revenue Offsets | G13: Other Revenue | H13: ='3. Data_Input_Sheet'!E33 -> 2250668 | I13: ='3. Data_Input_Sheet'!U33 -> 0
A14: ='1. Info'!$G$16 -> Waterloo North Hydro Inc. | B14: ='1. Info'!$G$20 -> EB-2020-0059 | C14: ='1. Info'!$G$28 -> 2021 | D14: ='1. Info'!$G$30 -> 2020 | E14: ='1. Info'!$G$32 -> 2016 | F14: OM+A Expenses | G14: Operating Expenses | H14: ='3. Data_Input_Sheet'!E36 -> 15777057 | I14: ='3. Data_Input_Sheet'!U36 -> 15129215
A15: ='1. Info'!$G$16 -> Waterloo North Hydro Inc. | B15: ='1. Info'!$G$20 -> EB-2020-0059 | C15: ='1. Info'!$G$28 -> 2021 | D15: ='1. Info'!$G$30 -> 2020 | E15: ='1. Info'!$G$32 -> 2016 | F15: Depreciation/Amortization | G15: Operating Expenses | H15: ='3. Data_Input_Sheet'!E37 -> 11100527 | I15: ='3. Data_Input_Sheet'!U37 -> 10745324
A16: ='1. Info'!$G$16 -> Waterloo North Hydro Inc. | B16: ='1. Info'!$G$20 -> EB-2020-0059 | C16: ='1. Info'!$G$28 -> 2021 | D16: ='1. Info'!$G$30 -> 2020 | E16: ='1. Info'!$G$32 -> 2016 | F16: Property taxes | G16: Operating Expenses | H16: ='3. Data_Input_Sheet'!E38 -> 471620 | I16: ='3. Data_Input_Sheet'!U38 -> 471620
A17: ='1. Info'!$G$16 -> Waterloo North Hydro Inc. | B17: ='1. Info'!$G$20 -> EB-2020-0059 | C17: ='1. Info'!$G$28 -> 2021 | D17: ='1. Info'!$G$30 -> 2020 | E17: ='1. Info'!$G$32 -> 2016 | F17: Other expenses | G17: Operating Expenses | H17: ='3. Data_Input_Sheet'!E40 -> 0 | I17: ='3. Data_Input_Sheet'!U40 -> 
A18: ='1. Info'!$G$16 -> Waterloo North Hydro Inc. | B18: ='1. Info'!$G$20 -> EB-2020-0059 | C18: ='1. Info'!$G$28 -> 2021 | D18: ='1. Info'!$G$30 -> 2020 | E18: ='1. Info'!$G$32 -> 2016 | F18: Adjustments required to arrive at taxable income | G18: Taxable Income | H18: ='3. Data_Input_Sheet'!E44 -> -5676173 | I18: ='3. Data_Input_Sheet'!U44 -> 0
A19: ='1. Info'!$G$16 -> Waterloo North Hydro Inc. | B19: ='1. Info'!$G$20 -> EB-2020-0059 | C19: ='1. Info'!$G$28 -> 2021 | D19: ='1. Info'!$G$30 -> 2020 | E19: ='1. Info'!$G$32 -> 2016 | F19: Income taxes (not grossed up) | G19: Utility Income Taxes | H19: ='3. Data_Input_Sheet'!E46 -> 653653 | I19: ='3. Data_Input_Sheet'!U46 -> 0
A20: ='1. Info'!$G$16 -> Waterloo North Hydro Inc. | B20: ='1. Info'!$G$20 -> EB-2020-0059 | C20: ='1. Info'!$G$28 -> 2021 | D20: ='1. Info'!$G$30 -> 2020 | E20: ='1. Info'!$G$32 -> 2016 | F20: Federal tax (%) | G20: Income taxes (grossed up) | H20: ='3. Data_Input_Sheet'!E49 -> 0.15 | I20: ='3. Data_Input_Sheet'!U49 -> 0
A21: ='1. Info'!$G$16 -> Waterloo North Hydro Inc. | B21: ='1. Info'!$G$20 -> EB-2020-0059 | C21: ='1. Info'!$G$28 -> 2021 | D21: ='1. Info'!$G$30 -> 2020 | E21: ='1. Info'!$G$32 -> 2016 | F21: Provincial tax (%) | G21: Income taxes (grossed up) | H21: ='3. Data_Input_Sheet'!E50 -> 0.115 | I21: ='3. Data_Input_Sheet'!U50 -> 0
A22: ='1. Info'!$G$16 -> Waterloo North Hydro Inc. | B22: ='1. Info'!$G$20 -> EB-2020-0059 | C22: ='1. Info'!$G$28 -> 2021 | D22: ='1. Info'!$G$30 -> 2020 | E22: ='1. Info'!$G$32 -> 2016 | F22: Income Tax Credits | G22: Income taxes (grossed up) | H22: ='3. Data_Input_Sheet'!E51 -> -51964 | I22: ='3. Data_Input_Sheet'!U51 -> 0
A23: ='1. Info'!$G$16 -> Waterloo North Hydro Inc. | B23: ='1. Info'!$G$20 -> EB-2020-0059 | C23: ='1. Info'!$G$28 -> 2021 | D23: ='1. Info'!$G$30 -> 2020 | E23: ='1. Info'!$G$32 -> 2016 | F23: Long-term debt Capitalization Ratio (%) | G23: Capitalization | H23: ='3. Data_Input_Sheet'!E55 -> 0.56 | I23: ='3. Data_Input_Sheet'!U55 -> 0
A24: ='1. Info'!$G$16 -> Waterloo North Hydro Inc. | B24: ='1. Info'!$G$20 -> EB-2020-0059 | C24: ='1. Info'!$G$28 -> 2021 | D24: ='1. Info'!$G$30 -> 2020 | E24: ='1. Info'!$G$32 -> 2016 | F24: Short-term debt Capitalization Ratio (%) | G24: Capitalization | H24: ='3. Data_Input_Sheet'!E56 -> 0.04 | I24: ='3. Data_Input_Sheet'!U56 -> 0
A25: ='1. Info'!$G$16 -> Waterloo North Hydro Inc. | B25: ='1. Info'!$G$20 -> EB-2020-0059 | C25: ='1. Info'!$G$28 -> 2021 | D25: ='1. Info'!$G$30 -> 2020 | E25: ='1. Info'!$G$32 -> 2016 | F25: Common Equity Capitalization Ratio (%) | G25: Capitalization | H25: ='3. Data_Input_Sheet'!E57 -> 0.4 | I25: ='3. Data_Input_Sheet'!U57 -> 0
A26: ='1. Info'!$G$16 -> Waterloo North Hydro Inc. | B26: ='1. Info'!$G$20 -> EB-2020-0059 | C26: ='1. Info'!$G$28 -> 2021 | D26: ='1. Info'!$G$30 -> 2020 | E26: ='1. Info'!$G$32 -> 2016 | F26: Prefered Shares Capitalization Ratio (%) | G26: Capitalization | H26: ='3. Data_Input_Sheet'!E58 -> 0 | I26: ='3. Data_Input_Sheet'!U58 -> 0
A27: ='1. Info'!$G$16 -> Waterloo North Hydro Inc. | B27: ='1. Info'!$G$20 -> EB-2020-0059 | C27: ='1. Info'!$G$28 -> 2021 | D27: ='1. Info'!$G$30 -> 2020 | E27: ='1. Info'!$G$32 -> 2016 | F27: Long-term debt Cost Rate (%) | G27: Cost of Capital | H27: ='3. Data_Input_Sheet'!E62 -> 0.03431662339 | I27: ='3. Data_Input_Sheet'!U62 -> 0
A28: ='1. Info'!$G$16 -> Waterloo North Hydro Inc. | B28: ='1. Info'!$G$20 -> EB-2020-0059 | C28: ='1. Info'!$G$28 -> 2021 | D28: ='1. Info'!$G$30 -> 2020 | E28: ='1. Info'!$G$32 -> 2016 | F28: Short-term debt Cost Rate (%) | G28: Cost of Capital | H28: ='3. Data_Input_Sheet'!E63 -> 0.0275 | I28: ='3. Data_Input_Sheet'!U63 -> 0
A29: ='1. Info'!$G$16 -> Waterloo North Hydro Inc. | B29: ='1. Info'!$G$20 -> EB-2020-0059 | C29: ='1. Info'!$G$28 -> 2021 | D29: ='1. Info'!$G$30 -> 2020 | E29: ='1. Info'!$G$32 -> 2016 | F29: Common Equity Cost Rate (%) | G29: Cost of Capital | H29: ='3. Data_Input_Sheet'!E64 -> 0.0852 | I29: ='3. Data_Input_Sheet'!U64 -> 0
A30: ='1. Info'!$G$16 -> Waterloo North Hydro Inc. | B30: ='1. Info'!$G$20 -> EB-2020-0059 | C30: ='1. Info'!$G$28 -> 2021 | D30: ='1. Info'!$G$30 -> 2020 | E30: ='1. Info'!$G$32 -> 2016 | F30: Prefered Shares Cost Rate (%) | G30: Cost of Capital | H30: ='3. Data_Input_Sheet'!E65 -> 0 | I30: ='3. Data_Input_Sheet'!U65 -> 0

Sheet 4. Rate_Base
B6: Rate Base and Working Capital
D10: Rate Base
B11: Line No. | D11: Particulars | G11: Initial Application | K11: =IF(ISBLANK('3. Data_Input_Sheet'!M12),"",'3. Data_Input_Sheet'!I12) -> Adjustments | O11: =IF(ISBLANK('3. Data_Input_Sheet'!M12)," ",'3. Data_Input_Sheet'!M12) -> Settlement Agreement | S11: =IF(ISBLANK('3. Data_Input_Sheet'!Q12),"",'3. Data_Input_Sheet'!Q12) -> Adjustments | W11: ='3. Data_Input_Sheet'!U12 -> Per Board Decision
B13: 1 | D13: Gross Fixed Assets (average) | E13: (2) | G13: ='3. Data_Input_Sheet'!E16 -> 421683875 | K13: ='3. Data_Input_Sheet'!I16 -> -1161034 | O13: =G13+K13 -> 420522841 | S13: ='3. Data_Input_Sheet'!Q16 -> 0 | W13: =G13+K13+S13 -> 420522841
B14: 2 | D14: Accumulated Depreciation (average) | E14: (2) | G14: ='3. Data_Input_Sheet'!E17 -> -193127986 | K14: ='3. Data_Input_Sheet'!I17 -> 2057342 | O14: =G14+K14 -> -191070644 | S14: ='3. Data_Input_Sheet'!Q17 -> 0 | W14: =G14+K14+S14 -> -191070644
B15: 3 | D15: Net Fixed Assets (average) | E15: (2) | G15: =SUM(G13:G14) -> 228555889 | K15: =SUM(K13:K14) -> 896308 | O15: =SUM(O13:O14) -> 229452197 | S15: =SUM(S13:S14) -> 0 | W15: =SUM(W13:W14) -> 229452197
B17: 4 | D17: Allowance for Working Capital | E17: (1) | G17: =G30 -> 16129504.95 | K17: =K30 -> -1955254.8 | O17: =O30 -> 14174250.15 | S17: =S30 -> -14174250.15 | W17: =W30 -> 0
D18: Total Rate Base | G18: =G17+G15 -> 244685393.9 | K18: =K17+K15 -> -1058946.8 | O18: =O17+O15 -> 243626447.2 | S18: =S17+S15 -> -14174250.15 | W18: =W15+W17 -> 229452197
B19: 5
C20: (1) | D20: Allowance for Working Capital - Derivation
B24: 6 | D24: Controllable Expenses | G24: ='3. Data_Input_Sheet'!E19 -> 15524190 | K24: ='3. Data_Input_Sheet'!I19 -> -588421 | O24: =G24+K24 -> 14935769 | S24: ='3. Data_Input_Sheet'!Q19 -> 0 | W24: =G24+K24+S24 -> 14935769
B25: 7 | D25: Cost of Power | G25: ='3. Data_Input_Sheet'!E20 -> 199535876 | K25: ='3. Data_Input_Sheet'!I20 -> -25481643 | O25: =G25+K25 -> 174054233 | S25: ='3. Data_Input_Sheet'!Q20 -> 0 | W25: =G25+K25+S25 -> 174054233
B26: 8 | D26: Working Capital Base | G26: =SUM(G24:G25) -> 215060066 | K26: =K24+K25 -> -26070064 | O26: =SUM(O24:O25) -> 188990002 | S26: =S24+S25 -> 0 | W26: =SUM(W24:W25) -> 188990002
B28: 9 | D28: Working Capital Rate % | E28: (1) | G28: ='3. Data_Input_Sheet'!E21 -> 0.075 | K28: =O28-G28 -> 0 | O28: ='3. Data_Input_Sheet'!M21 -> 0.075 | S28: =W28-O28 -> -0.075 | W28: ='3. Data_Input_Sheet'!U21 -> 0
B30: 10 | D30: Working Capital Allowance | G30: =G26*G28 -> 16129504.95 | K30: =O30-G30 -> -1955254.8 | O30: =O26*O28 -> 14174250.15 | S30: =W30-O30 -> -14174250.15 | W30: =W26*W28 -> 0
B33: Notes
B34: (1) | D34: Some Applicants may have a unique rate as a result of a lead-lag study. The default rate for 2021 cost of service applications is 7.5%, per the letter issued by the Board on June 3, 2015.
B35: (2) | D35: Average of opening and closing balances for the year.

Sheet 5. Utility Income
B11: Utility Income
B13: Line No. | D13: Particulars | F13: Initial Application | J13: =IF(N13="","","Adjustments") -> Adjustments | N13: =IF(ISBLANK('3. Data_Input_Sheet'!M12),"",'3. Data_Input_Sheet'!M12) -> Settlement Agreement | R13: =IF(N13="","","Adjustments") -> Adjustments | V13: ='3. Data_Input_Sheet'!U12 -> Per Board Decision
D15: Operating Revenues:
B16: 1 | D16: Distribution Revenue (at Proposed Rates) | F16: ='3. Data_Input_Sheet'!E26 -> 39298087 | J16: =N16-F16 -> -1764747.898 | N16: ='3. Data_Input_Sheet'!M26 -> 37533339.1 | R16: =V16-N16 -> 0 | V16: =IF(ISBLANK('3. Data_Input_Sheet'!U26),'5. Utility Income'!N16,'3. Data_Input_Sheet'!U26) -> 37533339.1
B17: 2 | D17: Other Revenue | E17: (1) | F17: =F48 -> 2250668 | J17: =N17-F17 -> 38952 | N17: =N48 -> 2289620 | R17: =V17-N17 -> 0 | V17: =V48 -> 2289620
F18: =SUM(F16:F17) -> 41548755 | J18: =SUM(J16:J17) -> -1725795.898 | N18: =SUM(N16:N17) -> 39822959.1 | R18: =SUM(R16:R17) -> 0 | V18: =SUM(V16:V17) -> 39822959.1
B19: 3 | D19: Total Operating Revenues
D21: Operating Expenses:
B22: 4 | D22: OM+A Expenses | F22: ='3. Data_Input_Sheet'!E36 -> 15777057 | J22: ='3. Data_Input_Sheet'!I36 -> -647842 | N22: ='3. Data_Input_Sheet'!M36 -> 15129215 | R22: ='3. Data_Input_Sheet'!Q36 -> 0 | V22: ='3. Data_Input_Sheet'!U36 -> 15129215
B23: 5 | D23: Depreciation/Amortization | F23: ='3. Data_Input_Sheet'!E37 -> 11100527 | J23: ='3. Data_Input_Sheet'!I37 -> -355203 | N23: ='3. Data_Input_Sheet'!M37 -> 10745324 | R23: ='3. Data_Input_Sheet'!Q37 -> 0 | V23: ='3. Data_Input_Sheet'!U37 -> 10745324
B24: 6 | D24: Property taxes | F24: ='3. Data_Input_Sheet'!E38 -> 471620 | J24: ='3. Data_Input_Sheet'!I38 -> 0 | N24: ='3. Data_Input_Sheet'!M38 -> 471620 | R24: ='3. Data_Input_Sheet'!Q38 -> 0 | V24: ='3. Data_Input_Sheet'!U38 -> 471620
B25: 7 | D25: Capital taxes | F25: ='6. Taxes_PILs'!G25 -> 0 | J25: =N25-F25 -> 0 | N25: ='6. Taxes_PILs'!K25 -> 0 | R25: =V25-N25 -> 0 | V25: ='6. Taxes_PILs'!O25 -> 0
B26: 8 | D26: Other expense | F26: ='3. Data_Input_Sheet'!E40 -> 0 | J26: ='3. Data_Input_Sheet'!I40 -> 0 | N26: ='3. Data_Input_Sheet'!M40 ->  | R26: ='3. Data_Input_Sheet'!Q40 -> 0 | V26: ='3. Data_Input_Sheet'!U40 -> 
F27: =SUM(F22:F26) -> 27349204 | J27: =SUM(J22:J26) -> -1003045 | N27: =SUM(N22:N26) -> 26346159 | R27: =SUM(R22:R26) -> 0 | V27: =SUM(V22:V26) -> 26346159
B28: 9 | D28: Subtotal (lines 4 to 8)
B30: 10 | D30: Deemed Interest Expense | F30: ='7. Cost_of_Capital'!P19 -> 4971348.781 | J30: =N30-F30 -> -253759.609 | N30: ='7. Cost_of_Capital'!P35 -> 4717589.172 | R30: =V30-N30 -> -55737.96203 | V30: ='7. Cost_of_Capital'!P51 -> 4661851.21
B32: 11 | D32: Total Expenses (lines 9 to 10) | F32: =F27+F30 -> 32320552.78 | J32: =J30+J27 -> -1256804.609 | N32: =N30+N27 -> 31063748.17 | R32: =R30+R27 -> -55737.96203 | V32: =V27+V30 -> 31008010.21
B34: 12 | D34: Utility income before income taxes | F34: =F18-(F32) -> 9228202.219 | J34: =J18-(J32) -> -468991.2893 | N34: =N18-(N32) -> 8759210.93 | R34: =R18-(R32) -> 55737.96203 | V34: =V18-(V32) -> 8814948.892
F35: ='6. Taxes_PILs'!G31 -> 889323.8095 | J35: =N35-F35 -> -257491.1565 | N35: ='6. Taxes_PILs'!K31 -> 631832.6531 | R35: =V35-N35 -> 0 | V35: =IF('6. Taxes_PILs'!O31=0,N35,'6. Taxes_PILs'!O31) -> 631832.6531
B36: 13 | D36: Income taxes (grossed-up)
F37: =F34-F35 -> 8338878.41 | J37: =J34-J35 -> -211500.1328 | N37: =N34-N35 -> 8127378.277 | R37: =R34-R35 -> 55737.96203 | V37: =V34-V35 -> 8183116.239
B38: 14 | D38: Utility net income
B42: Notes
B44: (1) | D44: Specific Service Charges | F44: ='3. Data_Input_Sheet'!E28 -> 382269 | J44: ='3. Data_Input_Sheet'!I28 -> 49815 | N44: ='3. Data_Input_Sheet'!M28 -> 432084 | R44: ='3. Data_Input_Sheet'!Q28 ->  | V44: =IF(ISBLANK('3. Data_Input_Sheet'!U28),N44,'3. Data_Input_Sheet'!U28) -> 432084
D45: Late Payment Charges | F45: ='3. Data_Input_Sheet'!E29 -> 144453 | J45: ='3. Data_Input_Sheet'!I29 -> 0 | N45: ='3. Data_Input_Sheet'!M29 -> 144453 | R45: ='3. Data_Input_Sheet'!Q29 ->  | V45: =IF(ISBLANK('3. Data_Input_Sheet'!U29),N45,'3. Data_Input_Sheet'!U29) -> 144453
D46: Other Distribution Revenue | F46: ='3. Data_Input_Sheet'!E30 -> 1557944 | J46: ='3. Data_Input_Sheet'!I30 -> -10863 | N46: ='3. Data_Input_Sheet'!M30 -> 1547081 | R46: ='3. Data_Input_Sheet'!Q30 ->  | V46: =IF(ISBLANK('3. Data_Input_Sheet'!U30),N46,'3. Data_Input_Sheet'!U30) -> 1547081
D47: Other Income and Deductions | F47: ='3. Data_Input_Sheet'!E31 -> 166002 | J47: ='3. Data_Input_Sheet'!I31 -> 0 | N47: ='3. Data_Input_Sheet'!M31 -> 166002 | R47: ='3. Data_Input_Sheet'!Q31 ->  | V47: =IF(ISBLANK('3. Data_Input_Sheet'!U31),N47,'3. Data_Input_Sheet'!U31) -> 166002
F48: =SUM(F44:F47) -> 2250668 | J48: =SUM(J44:J47) -> 38952 | N48: =SUM(N44:N47) -> 2289620 | R48: =SUM(R44:R47) -> 0 | V48: =SUM(V44:V47) -> 2289620
D49: Total Revenue Offsets

Sheet 6. Taxes_PILs
B9: Taxes/PILs
B12: Line No. | D12: Particulars | G12: Application | K12: =IF(ISBLANK('3. Data_Input_Sheet'!M12),"",'3. Data_Input_Sheet'!M12) -> Settlement Agreement | O12: ='3. Data_Input_Sheet'!U12 -> Per Board Decision
D14: Determination of Taxable Income
B16: 1 | D16: Utility net income before taxes | G16: ='7. Cost_of_Capital'!P22 -> 8338878.226 | K16: ='7. Cost_of_Capital'!P38 -> 8127378.277 | O16: ='7. Cost_of_Capital'!P54 -> 7819730.874
B18: 2 | D18: Adjustments required to arrive at taxable utility income | G18: ='3. Data_Input_Sheet'!E44 -> -5676173 | K18: ='3. Data_Input_Sheet'!M44 -> -6089009 | O18: =IF(ISBLANK('3. Data_Input_Sheet'!U44),K18,'3. Data_Input_Sheet'!U44) -> -6089009
B20: 3 | D20: Taxable income | G20: =G16+G18 -> 2662705.226 | K20: =K16+K18 -> 2038369.277 | O20: =O16+O18 -> 1730721.874
D22: Calculation of Utility income Taxes
B24: 4 | D24: Income taxes | G24: ='3. Data_Input_Sheet'!E46 -> 653653 | K24: =IF(ISBLANK('3. Data_Input_Sheet'!M46),'6. Taxes_PILs'!G24,'3. Data_Input_Sheet'!M46) -> 464397 | O24: =IF(ISBLANK('3. Data_Input_Sheet'!U46),'6. Taxes_PILs'!K24,'3. Data_Input_Sheet'!U46) -> 464397
B25: 5 | D25: Capital taxes | G25: ='3. Data_Input_Sheet'!E48 -> 0 | K25: =IF(ISBLANK('3. Data_Input_Sheet'!M48),'6. Taxes_PILs'!G25,'3. Data_Input_Sheet'!M48) -> 0 | O25: =IF(ISBLANK('3. Data_Input_Sheet'!U48),'6. Taxes_PILs'!K25,'3. Data_Input_Sheet'!U48) -> 0
G26: =SUM(G24:G25) -> 653653 | K26: =SUM(K24:K25) -> 464397 | O26: =SUM(O24:O25) -> 464397
B27: 6 | D27: Total taxes
B29: 7 | D29: Gross-up of Income Taxes | G29: =(G24/(1-G41))-G24 -> 235670.8095 | K29: =(K24/(1-K41))-K24 -> 167435.6531 | O29: =(O24/(1-O41))-O24 -> 167435.6531
B31: 8 | D31: Grossed-up Income Taxes | G31: =G24+G29 -> 889323.8095 | K31: =K24+K29 -> 631832.6531 | O31: =O24+O29 -> 631832.6531
B33: 9 | D33: PILs / tax Allowance (Grossed-up Income taxes + Capital taxes) | G33: =G26+G29 -> 889323.8095 | K33: =K29+K26 -> 631832.6531 | O33: =O29+O26 -> 631832.6531
B35: 10 | D35: Other tax Credits | G35: ='3. Data_Input_Sheet'!E51 -> -51964 | K35: =IF(ISBLANK('3. Data_Input_Sheet'!M51),G35,'3. Data_Input_Sheet'!M51) -> -75771 | O35: =IF(ISBLANK('3. Data_Input_Sheet'!U51),K35,'3. Data_Input_Sheet'!U51) -> -75771
D37: Tax Rates
B39: 11 | D39: Federal tax (%) | G39: ='3. Data_Input_Sheet'!E49 -> 0.15 | K39: =IF(ISBLANK('3. Data_Input_Sheet'!M49),G39,'3. Data_Input_Sheet'!M49) -> 0.15 | O39: =IF(ISBLANK('3. Data_Input_Sheet'!U49),K39,'3. Data_Input_Sheet'!U49) -> 0.15
B40: 12 | D40: Provincial tax (%) | G40: ='3. Data_Input_Sheet'!E50 -> 0.115 | K40: =IF(ISBLANK('3. Data_Input_Sheet'!M50),G40,'3. Data_Input_Sheet'!M50) -> 0.115 | O40: =IF(ISBLANK('3. Data_Input_Sheet'!U50),K40,'3. Data_Input_Sheet'!U50) -> 0.115
B41: 13 | D41: Total tax rate (%) | G41: =G39+G40 -> 0.265 | K41: =K39+K40 -> 0.265 | O41: =O39+O40 -> 0.265
B44: Notes
D45: Capital Taxes not applicable after July 1, 2010 (i.e. for 2011 and later test years)

Sheet 7. Cost_of_Capital
B5: Capitalization/Cost of Capital
B11: Line No. | D11: Particulars | F11: Capitalization Ratio | L11: Cost Rate | P11: Return
F13: Initial Application
F15: (%) | J15: ($) | L15: (%) | P15: ($)
D16: Debt
B17: 1 | D17: Long-term Debt | F17: ='3. Data_Input_Sheet'!E55 -> 0.56 | J17: =$J$26*F17 -> 137023820.6 | L17: ='3. Data_Input_Sheet'!E62 -> 0.03431662339 | P17: =L17*J17 -> 4702194.847
B18: 2 | D18: Short-term Debt | F18: ='3. Data_Input_Sheet'!E56 -> 0.04 | J18: =$J$26*F18 -> 9787415.758 | L18: ='3. Data_Input_Sheet'!E63 -> 0.0275 | P18: =L18*J18 -> 269153.9333
B19: 3 | D19: Total Debt | F19: =SUM(F17:F18) -> 0.6 | J19: =SUM(J17:J18) -> 146811236.4 | L19: =IF(F19=0,0,SUMPRODUCT(F17:F18,L17:L18)/F19) -> 0.03386218183 | P19: =SUM(P17:P18) -> 4971348.781
D21: Equity
B22: 4 | D22: Common Equity | F22: ='3. Data_Input_Sheet'!E57 -> 0.4 | J22: =$J$26*F22 -> 97874157.58 | L22: ='3. Data_Input_Sheet'!E64 -> 0.0852 | P22: =L22*J22 -> 8338878.226
B23: 5 | D23: Preferred Shares | F23: ='3. Data_Input_Sheet'!E58 -> 0 | J23: =$J$26*F23 -> 0 | L23: ='3. Data_Input_Sheet'!E65 -> 0 | P23: =L23*J23 -> 0
B24: 6 | D24: Total Equity | F24: =SUM(F22:F23) -> 0.4 | J24: =SUM(J22:J23) -> 97874157.58 | L24: =IF(F24=0,0,SUMPRODUCT(F22:F23,L22:L23)/F24) -> 0.0852 | P24: =SUM(P22:P23) -> 8338878.226
B26: 7 | D26: Total | F26: =SUM(F19,F24) -> 1 | J26: ='4. Rate_Base'!G18 -> 244685393.9 | L26: =(L19*F19)+(L24*F24) -> 0.0543973091 | P26: =P19+P24 -> 13310227.01
F29: ='1. Info'!AC1 -> Settlement Agreement
F31: (%) | J31: ($) | L31: (%) | P31: ($)
D32: Debt
B33: 1 | D33: Long-term Debt | F33: ='3. Data_Input_Sheet'!M55 -> 0.56 | J33: =$J$42*F33 -> 136430810.4 | L33: ='3. Data_Input_Sheet'!M62 -> 0.03332862016 | P33: =L33*J33 -> 4547050.659
B34: 2 | D34: Short-term Debt | F34: ='3. Data_Input_Sheet'!M56 -> 0.04 | J34: =$J$42*F34 -> 9745057.886 | L34: ='3. Data_Input_Sheet'!M63 -> 0.0175 | P34: =L34*J34 -> 170538.513
B35: 3 | D35: Total Debt | F35: =SUM(F33:F34) -> 0.6 | J35: =SUM(J33:J34) -> 146175868.3 | L35: =IF(F35=0,0,SUMPRODUCT(F33:F34,L33:L34)/F35) -> 0.03227337882 | P35: =SUM(P33:P34) -> 4717589.172
D37: Equity
B38: 4 | D38: Common Equity | F38: ='3. Data_Input_Sheet'!M57 -> 0.4 | J38: =$J$42*F38 -> 97450578.86 | L38: ='3. Data_Input_Sheet'!M64 -> 0.0834 | P38: =L38*J38 -> 8127378.277
B39: 5 | D39: Preferred Shares | F39: ='3. Data_Input_Sheet'!M58 -> 0 | J39: =$J$42*F39 -> 0 | L39: ='3. Data_Input_Sheet'!M65 -> 0 | P39: =L39*J39 -> 0
B40: 6 | D40: Total Equity | F40: =SUM(F38:F39) -> 0.4 | J40: =SUM(J38:J39) -> 97450578.86 | L40: =IF(F40=0,0,SUMPRODUCT(F38:F39,L38:L39)/F40) -> 0.0834 | P40: =SUM(P38:P39) -> 8127378.277
B42: 7 | D42: Total | F42: =F35+F40 -> 1 | J42: ='4. Rate_Base'!O18 -> 243626447.2 | L42: =(L35*F35)+(L40*F40) -> 0.05272402729 | P42: =P35+P40 -> 12844967.45
F45: Per Board Decision
F47: (%) | J47: ($) | L47: (%) | P47: ($)
D48: Debt
B49: 8 | D49: Long-term Debt | F49: =IF(ISBLANK('3. Data_Input_Sheet'!U55),F33,'3. Data_Input_Sheet'!U55) -> 0.56 | J49: =$J$58*F49 -> 128493230.3 | L49: =IF(ISBLANK('3. Data_Input_Sheet'!U62),L17,'3. Data_Input_Sheet'!U62) -> 0.03431662339 | P49: =L49*J49 -> 4409453.793
B50: 9 | D50: Short-term Debt | F50: =IF(ISBLANK('3. Data_Input_Sheet'!U56),F34,'3. Data_Input_Sheet'!U56) -> 0.04 | J50: =$J$58*F50 -> 9178087.88 | L50: =IF(ISBLANK('3. Data_Input_Sheet'!U63),L18,'3. Data_Input_Sheet'!U63) -> 0.0275 | P50: =L50*J50 -> 252397.4167
B51: 10 | D51: Total Debt | F51: =SUM(F49:F50) -> 0.6 | J51: =SUM(J49:J50) -> 137671318.2 | L51: =IF(F51=0,0,SUMPRODUCT(F49:F50,L49:L50)/F51) -> 0.03386218183 | P51: =SUM(P49:P50) -> 4661851.21
D53: Equity
B54: 11 | D54: Common Equity | F54: =IF(ISBLANK('3. Data_Input_Sheet'!U57),F38,'3. Data_Input_Sheet'!U57) -> 0.4 | J54: =$J$58*F54 -> 91780878.8 | L54: =IF(ISBLANK('3. Data_Input_Sheet'!U64),L22,'3. Data_Input_Sheet'!U64) -> 0.0852 | P54: =L54*J54 -> 7819730.874
B55: 12 | D55: Preferred Shares | F55: =IF(ISBLANK('3. Data_Input_Sheet'!U58),F39,'3. Data_Input_Sheet'!U58) -> 0 | J55: =$J$58*F55 -> 0 | L55: =IF(ISBLANK('3. Data_Input_Sheet'!U65),L23,'3. Data_Input_Sheet'!U65) -> 0 | P55: =L55*J55 -> 0
B56: 13 | D56: Total Equity | F56: =SUM(F54:F55) -> 0.4 | J56: =SUM(J54:J55) -> 91780878.8 | L56: =IF(F56=0,0,SUMPRODUCT(F54:F55,L54:L55)/F56) -> 0.0852 | P56: =SUM(P54:P55) -> 7819730.874
B58: 14 | D58: Total | F58: =F51+F56 -> 1 | J58: ='4. Rate_Base'!W18 -> 229452197 | L58: =(L51*F51)+(L56*F56) -> 0.0543973091 | P58: =P51+P56 -> 12481582.08
B61: Notes

Sheet 8. Rev_Def_Suff
P1: =CONCATENATE('2. Table of Contents'!$F$6," ",'2. Table of Contents'!$G$6) -> 
B10: Revenue Deficiency/Sufficiency
F13: Initial Application | J13: =IF(ISBLANK('3. Data_Input_Sheet'!M12),"",'3. Data_Input_Sheet'!M12) -> Settlement Agreement | N13: ='3. Data_Input_Sheet'!U12 -> Per Board Decision
B15: Line No. | D15: Particulars | F15: At Current Approved Rates | H15: At Proposed Rates | J15: At Current Approved Rates | L15: At Proposed Rates | N15: At Current Approved Rates | P15: At Proposed Rates
B19: 1 | D19: Revenue Deficiency from Below | H19: =F52 -> 2624363.659 | L19: =J52 -> 782863.9091 | P19: =N52 -> 308558.0516
B20: 2 | D20: Distribution Revenue | F20: ='3. Data_Input_Sheet'!E25 -> 36673723 | H20: ='3. Data_Input_Sheet'!E26-H19 -> 36673723.34 | J20: =IF(ISBLANK('3. Data_Input_Sheet'!M25),'3. Data_Input_Sheet'!E25,'3. Data_Input_Sheet'!M25) -> 36750475 | L20: =IF(ISBLANK('3. Data_Input_Sheet'!M26),'3. Data_Input_Sheet'!E26-L19,'3. Data_Input_Sheet'!M26-L19) -> 36750475.19 | N20: =IF(ISBLANK('3. Data_Input_Sheet'!U25),'3. Data_Input_Sheet'!M25,'3. Data_Input_Sheet'!U25) -> 36750475 | P20: =IF(ISBLANK('3. Data_Input_Sheet'!U26),'3. Data_Input_Sheet'!M26-P19,'3. Data_Input_Sheet'!U26-P19) -> 37224781.05
B21: 3 | D21: Other Operating Revenue Offsets - net | F21: ='5. Utility Income'!F48 -> 2250668 | H21: ='5. Utility Income'!F48 -> 2250668 | J21: ='5. Utility Income'!N48 -> 2289620 | L21: =J21 -> 2289620 | N21: ='5. Utility Income'!V48 -> 2289620 | P21: ='5. Utility Income'!V48 -> 2289620
B22: 4 | D22: Total Revenue | F22: =SUM(F20:F21) -> 38924391 | H22: =SUM(H19:H21) -> 41548755 | J22: =SUM(J20:J21) -> 39040095 | L22: =SUM(L19:L21) -> 39822959.1 | N22: =SUM(N20:N21) -> 39040095 | P22: =SUM(P19:P21) -> 39822959.1
B24: 5 | D24: Operating Expenses | F24: ='5. Utility Income'!F27 -> 27349204 | H24: ='5. Utility Income'!F27 -> 27349204 | J24: ='5. Utility Income'!N27 -> 26346159 | L24: ='5. Utility Income'!N27 -> 26346159 | N24: ='5. Utility Income'!V27 -> 26346159 | P24: ='5. Utility Income'!V27 -> 26346159
B25: 6 | D25: Deemed Interest Expense | F25: ='5. Utility Income'!F30 -> 4971348.781 | H25: ='5. Utility Income'!F30 -> 4971348.781 | J25: ='5. Utility Income'!N30 -> 4717589.172 | L25: ='5. Utility Income'!N30 -> 4717589.172 | N25: ='5. Utility Income'!V30 -> 4661851.21 | P25: ='5. Utility Income'!V30 -> 4661851.21
B26: 8 | D26: Total Cost and Expenses | F26: =SUM(F24:F25) -> 32320552.78 | H26: =SUM(H24:H25) -> 32320552.78 | J26: =SUM(J24:J25) -> 31063748.17 | L26: =SUM(L24:L25) -> 31063748.17 | N26: =SUM(N24:N25) -> 31008010.21 | P26: =SUM(P24:P25) -> 31008010.21
B28: 9 | D28: Utility Income Before Income Taxes | F28: =F22-F26 -> 6603838.219 | H28: =H22-H26 -> 9228202.219 | J28: =J22-J26 -> 7976346.828 | L28: =L22-L26 -> 8759210.93 | N28: =N22-N26 -> 8032084.79 | P28: =P22-P26 -> 8814948.892
B30: 10 | D30: Tax Adjustments to Accounting Income per 2013 PILs model | F30: ='3. Data_Input_Sheet'!E44 -> -5676173 | H30: ='3. Data_Input_Sheet'!E44 -> -5676173 | J30: =IF(ISBLANK('3. Data_Input_Sheet'!M44),'3. Data_Input_Sheet'!E44,'3. Data_Input_Sheet'!M44) -> -6089009 | L30: =IF(ISBLANK('3. Data_Input_Sheet'!M44),'3. Data_Input_Sheet'!E44,'3. Data_Input_Sheet'!M44) -> -6089009 | N30: =IF(ISBLANK('3. Data_Input_Sheet'!U44),'3. Data_Input_Sheet'!M44,'3. Data_Input_Sheet'!U44) -> -6089009 | P30: =IF(ISBLANK('3. Data_Input_Sheet'!U44),'3. Data_Input_Sheet'!M44,'3. Data_Input_Sheet'!U44) -> -6089009
B31: 11 | D31: Taxable Income | F31: =SUM(F28:F30) -> 927665.2193 | H31: =SUM(H28:H30) -> 3552029.219 | J31: =SUM(J28+J30) -> 1887337.828 | L31: =L28+L30 -> 2670201.93 | N31: =SUM(N28+N30) -> 1943075.79 | P31: =P28+P30 -> 2725939.892
B33: 12 | D33: Income Tax Rate | F33: ='6. Taxes_PILs'!G41 -> 0.265 | H33: ='6. Taxes_PILs'!G41 -> 0.265 | J33: ='6. Taxes_PILs'!K41 -> 0.265 | L33: ='6. Taxes_PILs'!K41 -> 0.265 | N33: ='6. Taxes_PILs'!O41 -> 0.265 | P33: ='6. Taxes_PILs'!O41 -> 0.265
B34: 13 | D34: Income Tax on Taxable Income | F34: =MAX(F31*F33,0) -> 245831.2831 | H34: =MAX(H31*H33,0) -> 941287.7431 | J34: =MAX(J31*J33,0) -> 500144.5245 | L34: =MAX(L31*L33,0) -> 707603.5114 | N34: =MAX(N31*N33,0) -> 514915.0844 | P34: =MAX(P31*P33,0) -> 722374.0714
B35: 14 | D35: Income Tax Credits | F35: ='3. Data_Input_Sheet'!E51 -> -51964 | H35: ='3. Data_Input_Sheet'!E51 -> -51964 | J35: =IF(ISBLANK('3. Data_Input_Sheet'!M51),'3. Data_Input_Sheet'!E51,'3. Data_Input_Sheet'!M51) -> -75771 | L35: =IF(ISBLANK('3. Data_Input_Sheet'!M51),'3. Data_Input_Sheet'!E51,'3. Data_Input_Sheet'!M51) -> -75771 | N35: =IF(ISBLANK('3. Data_Input_Sheet'!U51),'3. Data_Input_Sheet'!M51,'3. Data_Input_Sheet'!U51) -> -75771 | P35: =IF(ISBLANK('3. Data_Input_Sheet'!U51),'3. Data_Input_Sheet'!M51,'3. Data_Input_Sheet'!U51) -> -75771
B36: 15 | D36: Utility Net Income | F36: =F28-SUM(F34:F35) -> 6409970.936 | H36: ='5. Utility Income'!F37 -> 8338878.41 | J36: =J28-SUM(J34:J35) -> 7551973.304 | L36: ='5. Utility Income'!N37 -> 8127378.277 | N36: =N28-SUM(N34:N35) -> 7592940.706 | P36: ='5. Utility Income'!V37 -> 8183116.239
B38: 16 | D38: Utility Rate Base | F38: ='4. Rate_Base'!G18 -> 244685393.9 | H38: ='4. Rate_Base'!G18 -> 244685393.9 | J38: ='4. Rate_Base'!O18 -> 243626447.2 | L38: ='4. Rate_Base'!O18 -> 243626447.2 | N38: ='4. Rate_Base'!W18 -> 229452197 | P38: ='4. Rate_Base'!W18 -> 229452197
B40: 17 | D40: Deemed Equity Portion of Rate Base | F40: ='7. Cost_of_Capital'!J24 -> 97874157.58 | H40: =F40 -> 97874157.58 | J40: ='7. Cost_of_Capital'!J40 -> 97450578.86 | L40: =J40 -> 97450578.86 | N40: ='7. Cost_of_Capital'!J56 -> 91780878.8 | P40: =N40 -> 91780878.8
B42: 18 | D42: Income/(Equity Portion of Rate Base) | F42: =IF(F40=0,0,F36/F40) -> 0.06549196534 | H42: =IF(H40=0,0,H36/H40) -> 0.08520000188 | J42: =IF(J40=0,0,J36/J40) -> 0.0774954176 | L42: =IF(L40=0,0,L36/L40) -> 0.0834 | N42: =IF(N40=0,0,N36/N40) -> 0.08272900418 | P42: =IF(P40=0,0,P36/P40) -> 0.08915927093
B43: 19 | D43: Target Return - Equity on Rate Base | F43: ='7. Cost_of_Capital'!L24 -> 0.0852 | H43: ='7. Cost_of_Capital'!L24 -> 0.0852 | J43: ='7. Cost_of_Capital'!L40 -> 0.0834 | L43: ='7. Cost_of_Capital'!L40 -> 0.0834 | N43: ='7. Cost_of_Capital'!L56 -> 0.0852 | P43: ='7. Cost_of_Capital'!L56 -> 0.0852
B44: 20 | D44: Deficiency/Sufficiency in Return on Equity | F44: =F42-F43 -> -0.01970803466 | H44: =H42-H43 -> 1.879402703e-09 | J44: =J42-J43 -> -0.005904582404 | L44: =L42-L43 -> 0 | N44: =N42-N43 -> -0.00247099582 | P44: =P42-P43 -> 0.003959270928
B46: 21 | D46: Indicated Rate of Return | F46: =IF(F38=0,0,(F36+F25)/F38) -> 0.04651409524 | H46: =IF(H38=0,0,(H36+H25)/H38) -> 0.05439730985 | J46: =IF(J38=0,0,(J36+J25)/J38) -> 0.05036219433 | L46: =IF(L40=0,0,(L36+L25)/L38) -> 0.05272402729 | N46: =IF(N38=0,0,(N36+N25)/N38) -> 0.05340891077 | P46: =IF(P40=0,0,(P36+P25)/P38) -> 0.05598101747
B47: 22 | D47: Requested Rate of Return on Rate Base | F47: ='7. Cost_of_Capital'!L26 -> 0.0543973091 | H47: ='7. Cost_of_Capital'!L26 -> 0.0543973091 | J47: ='7. Cost_of_Capital'!L42 -> 0.05272402729 | L47: ='7. Cost_of_Capital'!L42 -> 0.05272402729 | N47: ='7. Cost_of_Capital'!L58 -> 0.0543973091 | P47: ='7. Cost_of_Capital'!L58 -> 0.0543973091
B48: 23 | D48: Deficiency/Sufficiency in Rate of Return | F48: =F46-F47 -> -0.007883213863 | H48: =H46-H47 -> 7.517610839e-10 | J48: =J46-J47 -> -0.002361832961 | L48: =L46-L47 -> 0 | N48: =N46-N47 -> -0.0009883983282 | P48: =P46-P47 -> 0.001583708371
B50: 24 | D50: Target Return on Equity | F50: =H50 -> 8338878.226 | H50: ='7. Cost_of_Capital'!P24 -> 8338878.226 | J50: =L50 -> 8127378.277 | L50: ='7. Cost_of_Capital'!P40 -> 8127378.277 | N50: =P50 -> 7819730.874 | P50: ='7. Cost_of_Capital'!P56 -> 7819730.874
B51: 25 | D51: Revenue Deficiency/(Sufficiency) | F51: =F50-F36 -> 1928907.29 | H51: =H38*H48 -> 0.183944957 | J51: =J50-J36 -> 575404.9732 | L51: =L38*L48 -> 0 | N51: =N50-N36 -> 226790.1679 | P51: =P38*P48 -> 363385.3652
B52: 26 | D52: Gross Revenue Deficiency/(Sufficiency) | F52: =F51/(1-F33) -> 2624363.659 | G52: (1) | J52: =J51/(1-J33) -> 782863.9091 | K52: (1) | N52: =N51/(1-N33) -> 308558.0516 | O52: (1)
B55: Notes:
B56: (1) | D56: Revenue Deficiency/Sufficiency divided by (1 - Tax Rate)

Sheet 9. Rev_Reqt
B11: Revenue Requirement
B13: Line No. | D13: Particulars | F13: Application | J13: =IF(ISBLANK('3. Data_Input_Sheet'!M12),"",'3. Data_Input_Sheet'!M12) -> Settlement Agreement | N13: ='3. Data_Input_Sheet'!U12 -> Per Board Decision
B15: 1 | D15: OM&A Expenses | F15: ='5. Utility Income'!F22 -> 15777057 | J15: ='5. Utility Income'!N22 -> 15129215 | N15: ='5. Utility Income'!V22 -> 15129215
B16: 2 | D16: Amortization/Depreciation | F16: ='5. Utility Income'!F23 -> 11100527 | J16: ='5. Utility Income'!N23 -> 10745324 | N16: ='5. Utility Income'!V23 -> 10745324
B17: 3 | D17: Property Taxes | F17: ='5. Utility Income'!F24 -> 471620 | J17: ='5. Utility Income'!N24 -> 471620 | N17: ='5. Utility Income'!V24 -> 471620
B18: 4 | D18: Capital Taxes | F18: ='6. Taxes_PILs'!G25 -> 0 | J18: ='6. Taxes_PILs'!K25 -> 0 | N18: ='6. Taxes_PILs'!O25 -> 0
B19: 5 | D19: Income Taxes (Grossed up) | F19: ='6. Taxes_PILs'!G33-F18 -> 889323.8095 | J19: ='6. Taxes_PILs'!K33-J18 -> 631832.6531 | N19: ='6. Taxes_PILs'!O33-N18 -> 631832.6531
B20: 6 | D20: Other Expenses | F20: ='5. Utility Income'!F26 -> 0 | J20: ='5. Utility Income'!N26 ->  | N20: ='5. Utility Income'!V26 -> 
B21: 7 | D21: Return
D22: Deemed Interest Expense | F22: ='8. Rev_Def_Suff'!F25 -> 4971348.781 | J22: ='8. Rev_Def_Suff'!L25 -> 4717589.172 | N22: ='8. Rev_Def_Suff'!P25 -> 4661851.21
D23: Return on Deemed Equity | F23: ='8. Rev_Def_Suff'!F50 -> 8338878.226 | J23: ='8. Rev_Def_Suff'!L50 -> 8127378.277 | N23: ='8. Rev_Def_Suff'!P50 -> 7819730.874
B25: 8 | D25: Service Revenue Requirement (before Revenues) | F25: =SUM(F15:F23) -> 41548754.82 | J25: =SUM(J15:J23) -> 39822959.1 | N25: =SUM(N15:O23) -> 39459573.74
B27: 9 | D27: Revenue Offsets | F27: ='3. Data_Input_Sheet'!E33 -> 2250668 | J27: ='3. Data_Input_Sheet'!M33 -> 2289620 | N27: ='3. Data_Input_Sheet'!U33 -> 0
B28: 10 | D28: Base Revenue Requirement | F28: =F25-F27 -> 39298086.82 | J28: =J25-J27 -> 37533339.1 | N28: =N25-N27 -> 39459573.74
D29: (excluding Tranformer Owership Allowance credit adjustment)
B31: 11 | D31: Distribution revenue | F31: ='5. Utility Income'!F16 -> 39298087 | J31: ='5. Utility Income'!N16 -> 37533339.1 | N31: ='5. Utility Income'!V16 -> 37533339.1
B32: 12 | D32: Other revenue | F32: ='5. Utility Income'!F17 -> 2250668 | J32: ='5. Utility Income'!N17 -> 2289620 | N32: ='5. Utility Income'!V17 -> 2289620
F33: =SUM(F31:F32) -> 41548755 | J33: =SUM(J31:J32) -> 39822959.1 | N33: =SUM(N31:N32) -> 39822959.1
B34: 13 | D34: Total revenue
F35: =F33-F25 -> 0.1839449555 | J35: =J33-J25 -> 0 | N35: =N33-N25 -> 363385.3652
B36: 14 | D36: Difference (Total Revenue Less Distribution Revenue Requirement before Revenues) | H36: (1) | L36: (1) | Q36: (1)
D39: Summary Table of Revenue Requirement and Revenue Deficiency/Sufficiency
F41: =F13 -> Application | J41: =J13 -> Settlement Agreement | L41: Δ% (2) | N41: =N13 -> Per Board Decision | Q41: =L41 -> Δ% (2)
D42: Service Revenue Requirement | F42: =F25 -> 41548754.82 | J42: =J25 -> 39822959.1 | L42: =IF($F42=0," ",(J42-$F42)/$F42) -> -0.04153664104 | N42: =N25 -> 39459573.74 | Q42: =IF($F42=0," ",(O42-$F42)/$F42) -> -1
D43: Grossed-Up Revenue Deficiency/(Sufficiency) | F43: ='8. Rev_Def_Suff'!F52 -> 2624363.659 | J43: ='8. Rev_Def_Suff'!J52 -> 782863.9091 | L43: =IF($F43=0," ",(J43-$F43)/$F43) -> -0.7016938158 | N43: ='8. Rev_Def_Suff'!N52 -> 308558.0516 | Q43: =IF($F43=0," ",(O43-$F43)/$F43) -> -1
D45: Base Revenue Requirement (to be recovered from Distribution Rates) | F45: =F28 -> 39298086.82 | J45: =J28 -> 37533339.1 | L45: =IF($F45=0," ",(J45-$F45)/$F45) -> -0.04490670812 | N45: =N28 -> 39459573.74 | Q45: =IF($F45=0," ",(O45-$F45)/$F45) -> -1
D46: Revenue Deficiency/(Sufficiency) Associated with Base Revenue Requirement | F46: ='3. Data_Input_Sheet'!E26-'3. Data_Input_Sheet'!E25 -> 2624364 | J46: ='3. Data_Input_Sheet'!M26-'3. Data_Input_Sheet'!M25 -> 782864.1017 | L46: =IF($F46=0," ",(J46-$F46)/$F46) -> -0.7016937811 | N46: ='3. Data_Input_Sheet'!U26-'3. Data_Input_Sheet'!U25 -> 0 | Q46: =IF($F46=0," ",(O46-$F46)/$F46) -> -1
B49: Notes
B50: (1) | D50: Line 11 - Line 8
B51: (2) | D51: Percentage Change Relative to Initial Application

Sheet Hidden Data_Rev Reqt (hidden)
A1: Utility Name | B1: EB Number | C1: Test Year | D1: Bridge Year | E1: Last Rebasing Year | F1: Data Elements | G1: Intital Application | H1: Per Board Decision
A2: ='1. Info'!$G$16 -> Waterloo North Hydro Inc. | B2: ='1. Info'!$G$20 -> EB-2020-0059 | C2: ='1. Info'!$G$28 -> 2021 | D2: ='1. Info'!$G$30 -> 2020 | E2: ='1. Info'!$G$32 -> 2016 | F2: Service Revenue Requirement (before Revenues) | G2: ='9. Rev_Reqt'!F25 -> 41548754.82 | H2: ='9. Rev_Reqt'!N25 -> 39459573.74
A3: ='1. Info'!$G$16 -> Waterloo North Hydro Inc. | B3: ='1. Info'!$G$20 -> EB-2020-0059 | C3: ='1. Info'!$G$28 -> 2021 | D3: ='1. Info'!$G$30 -> 2020 | E3: ='1. Info'!$G$32 -> 2016 | F3: Base Revenue Requirement | G3: ='9. Rev_Reqt'!F28 -> 39298086.82 | H3: ='9. Rev_Reqt'!N28 -> 39459573.74
A4: ='1. Info'!$G$16 -> Waterloo North Hydro Inc. | B4: ='1. Info'!$G$20 -> EB-2020-0059 | C4: ='1. Info'!$G$28 -> 2021 | D4: ='1. Info'!$G$30 -> 2020 | E4: ='1. Info'!$G$32 -> 2016 | F4: Revenue Deficiency/(Sufficiency) Associated with Base Revenue Requirement | G4: ='9. Rev_Reqt'!F46 -> 2624364 | H4: ='9. Rev_Reqt'!N46 -> 0

Sheet 10. Load Forecast
B14: Load Forecast Summary
B16: This spreadsheet provides a summary of the customer and load forecast on which the test year revenue requirement is derived. The amounts serve as the denominators for deriving the rates to recover the test year revenue requirement for purposes of this RRWF.
B18: The information to be input is inclusive of any adjustments to kWh and kW to reflect the impacts of CDM programs up to and including CDM programs planned to be executed in the test year. i.e., the load forecast adjustments determined in Appendix 2-I should be incorporated into the entries. The inputs should correspond with the summary of the Load Forecast for the Test Year in Appendix 2-IB and in Exhibit 3 of the application.
B20: Appendix 2-IB is still required to be filled out, as it also provides a year-over-year variance analysis of demand growth andf trends from historical actuals to the Bridge and Test Year forecasts.
D22: Stage in Process: | F22: Settlement Agreement
D24: Customer Class | F24: ='3. Data_Input_Sheet'!E12 -> Initial Application | L24: =IF(ISBLANK('3. Data_Input_Sheet'!M12)," ",'3. Data_Input_Sheet'!M12) -> Settlement Agreement | R24: ='3. Data_Input_Sheet'!U12 -> Per Board Decision
D26: Input the name of each customer class. | F26: Customer / Connections | H26: kWh | J26: kW/kVA (1) | L26: =F26 -> Customer / Connections | N26: =H26 -> kWh | P26: kW/kVA (1) | R26: =F26 -> Customer / Connections | T26: =H26 -> kWh | V26: kW/kVA (1)
F27: Test Year average or mid-year | H27: Annual | J27: Annual | L27: =F27 -> Test Year average or mid-year | N27: =H27 -> Annual | P27: =J27 -> Annual | R27: =F27 -> Test Year average or mid-year | T27: =H27 -> Annual | V27: =J27 -> Annual
B29: 1 | D29: Residential | F29: 51719 | H29: 395056934 | L29: 51719 | N29: 398047339
B30: 2 | D30: GS <50 | F30: 5989 | H30: 195573807 | L30: 5989 | N30: 197054213
B31: 3 | D31: GS >50-Regular | F31: 774 | H31: 697140723 | J31: 1764636 | L31: 774 | N31: 700573709 | P31: 1773328
B32: 4 | D32: Large Use >5MW | F32: 1 | H32: 95699867 | J32: 169287 | L32: 1 | N32: 96424273 | P32: 170568
B33: 5 | D33: Street Light | F33: 15005 | H33: 3347727 | J33: 9302 | L33: 15005 | N33: 3347727 | P33: 9302
B34: 6 | D34: Unmetered Scattered Load | F34: 540 | H34: 2947114 | L34: 540 | N34: 2947114
B35: 7 | D35: Embedded Distributor | F35: 1 | H35: 41857714 | J35: 103033 | L35: 1 | N35: 41857714 | P35: 103033
B36: 8
B37: 9
B38: 10
B39: 11
B40: 12
B41: 13
B42: 14
B43: 15
B44: 16
B45: 17
B46: 18
B47: 19
B48: 20
D50: Total | H50: =SUM(H29:H48) -> 1431623886 | J50: =SUM(J29:J48) -> 2046258 | N50: =SUM(N29:N48) -> 1440252089 | P50: =SUM(P29:P48) -> 2056231 | T50: =SUM(T29:T48) -> 0 | V50: =SUM(V29:V48) -> 0
B52: Notes:
B54: (1) | C54: Input kW or kVA for those customer classes for which billing is based on demand (kW or kVA) versus energy consumption (kWh)
C55: Please refer to Waterloo_Settlement_Load_Forecast_2021_COS_20201022

Sheet 11. Cost_Allocation
B14: Cost Allocation and Rate Design
B16: This spreadsheet replaces Appendix 2-P and provides a summary of the results from the Cost Allocation spreadsheet, and is used in the determination of the class revenue requirement and, hence, ultimately, the determination of rates from customers in all classes to recover the revenue requirement.
C20: Stage in Application Process: | E20: =IF(ISBLANK('10. Load Forecast'!F22),"",'10. Load Forecast'!F22) -> Settlement Agreement
B22: A) | C22: Allocated Costs
C24: Name of Customer Class (3) | E24: Costs Allocated from Previous Study (1) | G24: % | I24: Allocated Class Revenue Requirement (1) | K24: %
C25: From Sheet 10. Load Forecast
I26: (7A)
B28: 1 | C28: =IF(ISBLANK('10. Load Forecast'!D29),"",'10. Load Forecast'!D29) -> Residential | E28: 18260988 | G28: =IF(E$49=0,"",E28/E$49) -> 0.5220360029 | I28: 21815752 | K28: =IF(I$49=0,"",I28/I$49) -> 0.5478184582
B29: 2 | C29: =IF(ISBLANK('10. Load Forecast'!D30),"",'10. Load Forecast'!D30) -> GS <50 | E29: 5261206 | G29: =IF(E$49=0,"",E29/E$49) -> 0.150404729 | I29: 6162078 | K29: =IF(I$49=0,"",I29/I$49) -> 0.154736819
B30: 3 | C30: =IF(ISBLANK('10. Load Forecast'!D31),"",'10. Load Forecast'!D31) -> GS >50-Regular | E30: 10167367 | G30: 0.2906596088 | I30: 10511311 | K30: 0.2639510289
B31: 4 | C31: =IF(ISBLANK('10. Load Forecast'!D32),"",'10. Load Forecast'!D32) -> Large Use >5MW | E31: 937129 | G31: 0.02679017572 | I31: 1005147 | K31: 0.0252403896
B32: 5 | C32: =IF(ISBLANK('10. Load Forecast'!D33),"",'10. Load Forecast'!D33) -> Street Light | E32: 254785 | G32: 0.007283666306 | I32: 211573 | K32: 0.005312839762
B33: 6 | C33: =IF(ISBLANK('10. Load Forecast'!D34),"",'10. Load Forecast'!D34) -> Unmetered Scattered Load | E33: 97398 | G33: 0.00278436537 | I33: 114987 | K33: 0.002887454948
B34: 7 | C34: =IF(ISBLANK('10. Load Forecast'!D35),"",'10. Load Forecast'!D35) -> Embedded Distributor | E34: 1450 | G34: 4.145187567e-05 | I34: 2111 | K34: 5.300962191e-05
B35: 8 | C35: =IF(ISBLANK('10. Load Forecast'!D36),"",'10. Load Forecast'!D36) ->  | G35: 0 | K35: 0
B36: 9 | C36: =IF(ISBLANK('10. Load Forecast'!D37),"",'10. Load Forecast'!D37) ->  | G36: 0 | K36: 0
B37: 10 | C37: =IF(ISBLANK('10. Load Forecast'!D38),"",'10. Load Forecast'!D38) ->  | G37: 0 | K37: 0
B38: 11 | C38: =IF(ISBLANK('10. Load Forecast'!D39),"",'10. Load Forecast'!D39) ->  | G38: 0 | K38: 0
B39: 12 | C39: =IF(ISBLANK('10. Load Forecast'!D40),"",'10. Load Forecast'!D40) ->  | G39: 0 | K39: 0
B40: 13 | C40: =IF(ISBLANK('10. Load Forecast'!D41),"",'10. Load Forecast'!D41) ->  | G40: 0 | K40: 0
B41: 14 | C41: =IF(ISBLANK('10. Load Forecast'!D42),"",'10. Load Forecast'!D42) ->  | G41: 0 | K41: 0
B42: 15 | C42: =IF(ISBLANK('10. Load Forecast'!D43),"",'10. Load Forecast'!D43) ->  | G42: 0 | K42: 0
B43: 16 | C43: =IF(ISBLANK('10. Load Forecast'!D44),"",'10. Load Forecast'!D44) ->  | G43: 0 | K43: 0
B44: 17 | C44: =IF(ISBLANK('10. Load Forecast'!D45),"",'10. Load Forecast'!D45) ->  | G44: 0 | K44: 0
B45: 18 | C45: =IF(ISBLANK('10. Load Forecast'!D46),"",'10. Load Forecast'!D46) ->  | G45: 0 | K45: 0
B46: 19 | C46: =IF(ISBLANK('10. Load Forecast'!D47),"",'10. Load Forecast'!D47) ->  | G46: 0 | K46: 0
B47: 20 | C47: =IF(ISBLANK('10. Load Forecast'!D48),"",'10. Load Forecast'!D48) ->  | G47: 0 | K47: 0
C49: Total | E49: =SUM(E28:E47) -> 34980323 | G49: =SUM(G28:G47) -> 1 | I49: =SUM(I28:I47) -> 39822959 | K49: =SUM(K28:K47) -> 1
C51: =IF(I51=0,"",IF(ABS(I51-I49)<(0.001*I51)," ","Allocated Revenue Requirement does not match Base Revenue Requirement from Sheet 9. Check data.")) ->  | G51: Service Revenue Requirement (from Sheet 9) | I51: =IF(ISBLANK(E20),"",IF(E20='13. Rate Design'!AC4,'9. Rev_Reqt'!F25,IF(E20='13. Rate Design'!AC6,'9. Rev_Reqt'!N25,'9. Rev_Reqt'!J25))) -> 39822959.1
B53: (1) | C53: Class Allocated Revenue Requirement, from Sheet O-1, Revenue to Cost || RR, row 40, from the Cost Allocation Study in this application. This excludes costs in deferral and variance accounts. For Embedded Distributors, Account 4750 - Low Voltage (LV) Costs are also excluded.
B54: (2) | C54: Host Distributors - Provide information on any embedded distributor(s) as a separate class, if applicable. If embedded distributors are billed in a General Service class, include the allocated costs and revenues of the embedded distributor(s) in the applicable class, and also complete Appendix 2-Q.
B55: (3) | C55: Customer Classes - If these differ from those in place in the previous cost allocation study, modify the customer classes to match the proposal in the current application as closely as possible.
B57: B) | C57: Calculated Class Revenues
C59: Name of Customer Class | E59: Load Forecast (LF) X current approved rates | G59: LF X current approved rates X (1+d) | I59: LF X Proposed Rates | K59: Miscellaneous Revenues
E60: (7B) | G60: (7C) | I60: (7D) | K60: (7E)
B62: 1 | C62: =IF(ISBLANK(C28),"",C28) -> Residential | E62: 19891127 | G62: 20314851 | I62: 20314851 | K62: 1482349
B63: 2 | C63: =IF(ISBLANK(C29),"",C29) -> GS <50 | E63: 5675723 | G63: 5796628 | I63: 5796628 | K63: 326629
B64: 3 | C64: GS >50-Regular | E64: 10101178 | G64: 10316354 | I64: 10316354 | K64: 419728
B65: 4 | C65: Large Use >5MW | E65: 811698 | G65: 828989 | I65: 828989 | K65: 39955
B66: 5 | C66: Street Light | E66: 155034 | G66: 158336 | I66: 158336 | K66: 14148
B67: 6 | C67: Unmetered Scattered Load | E67: 113541 | G67: 115960 | I67: 115960 | K67: 6745
B68: 7 | C68: Embedded Distributor | E68: 2174 | G68: 2220 | I68: 2220 | K68: 67
B69: 8
B70: 9
B71: 10
B72: 11
B73: 12
B74: 13
B75: 14
B76: 15
B77: 16
B78: 17
B79: 18
B80: 19
B81: 20
C83: Total | E83: =SUM(E62:E81) -> 36750475 | G83: =SUM(G62:G81) -> 37533338 | I83: =SUM(I62:I81) -> 37533338 | K83: =SUM(K62:K81) -> 2289621
B86: (4) | C86: In columns 7B to 7D, LF means Load Forecast of Annual Billing Quantities (i.e., customers or connections, as applicable X 12 months, and kWh, kW or kVA as applicable. Revenue quantities should be net of the Transformer Ownership Allowance for applicable customer classes. Exclude revenues from rate adders and rate riders.
B87: (5) | C87: Columns 7C and 7D - Column Total should equal the Base Revenue Requirement for each.
B88: (6) | C88: Column 7C - The OEB-issued cost allocation model calculates "1+d" on worksheet O-1, cell C22. "d" is defined as Revenue Deficiency/Revenue at Current Rates.
B89: (7) | C89: Column 7E - If using the OEB-issued cost allocation model, enter Miscellaneous Revenues as it appears on worksheet O-1, row 19,
B91: C) | C91: Rebalancing Revenue-to-Cost Ratios
C93: Name of Customer Class | E93: Previously Approved Ratios | G93: Status Quo Ratios | I93: Proposed Ratios | K93: Policy Range
E94: Most Recent Year: | G94: (7C + 7E) / (7A) | I94: (7D + 7E) / (7A)
E95: 2016
E96: % | G96: % | I96: % | K96: %
B98: 1 | C98: =IF(ISBLANK(C62),"",C62) -> Residential | E98: 1.0298 | G98: =IF(ISBLANK(I28),"",(G62+K62)/I28) -> 0.9991496053 | I98: =IF(ISBLANK(I28),"",(I62+K62)/I28) -> 0.9991496053 | K98: 85 - 115 | M98: =IF(ISBLANK(K98),"",LEFT(K98,2)/100) -> 0.85 | N98: =IF(ISBLANK(K98),"",RIGHT(K98,3)/100) -> 1.15 | O98: 85 - 115
B99: 2 | C99: GS <50 | E99: 1.0248 | G99: 0.9937000148 | I99: 0.9937000148 | K99: 80 - 120 | M99: =IF(ISBLANK(K99),"",LEFT(K99,2)/100) -> 0.8 | N99: =IF(ISBLANK(K99),"",RIGHT(K99,3)/100) -> 1.2 | O99: 80 - 120
B100: 3 | C100: GS >50-Regular | E100: 0.9449 | G100: 1.021383727 | I100: 1.021383727 | K100: 80 - 120 | M100: 0.8 | N100: 1.2
B101: 4 | C101: Large Use >5MW | E101: 0.85 | G101: 0.8644944471 | I101: 0.8644944471 | K101: 85 - 115 | M101: 0.85 | N101: 1.15
B102: 5 | C102: Street Light | E102: 1.0298 | G102: 0.8152458017 | I102: 0.8152458017 | K102: 80 - 120 | M102: 0.8 | N102: 1.2
B103: 6 | C103: Unmetered Scattered Load | E103: 1.2 | G103: 1.067120631 | I103: 1.067120631 | K103: 80 - 120 | M103: 0.8 | N103: 1.2
B104: 7 | C104: Embedded Distributor | E104: 1 | G104: 1.083372809 | I104: 1.083372809 | K104: 80 - 120 | M104: 0.8 | N104: 1.2
B105: 8
B106: 9
B107: 10
B108: 11
B109: 12
B110: 13
B111: 14
B112: 15
B113: 16
B114: 17
B115: 18
B116: 19
B117: 20
B120: (8) | C120: Previously Approved Revenue-to-Cost (R/C) Ratios - For most applicants, the most recent year would be the third year (at the latest) of the Price Cap IR period. For example, if the applicant, rebased in 2012 with further adjustments to move within the range over two years, the Most Recent Year would be 2015. However, the ratios in 2015 would be equal to those after the adjustment in 2014.
B121: (9) | C121: Status Quo Ratios - The OEB-issued cost allocation model provides the Status Quo Ratios on Worksheet O-1. The Status Quo means "Before Rebalancing".
B122: (10) | C122: Ratios shown in red are outside of the allowed range. Applies to both Tables C and D.
B124: (D) | C124: Proposed Revenue-to-Cost Ratios (11)
C126: Name of Customer Class | E126: Proposed Revenue-to-Cost Ratio | K126: Policy Range
E127: Test Year | G127: Price Cap IR Period
E128: 2021 | G128: =E128+1 -> 2022 | I128: =G128+1 -> 2023
B130: 1 | C130: =IF(ISBLANK(C98),"",C98) -> Residential | E130: =I98 -> 0.9991496053 | G130: =IF(E130=0,"",E130) -> 0.9991496053 | I130: =IF(G130=0,"",G130) -> 0.9991496053 | K130: =IF(ISBLANK(K98),"",K98) -> 85 - 115 | M130: =IF(K130="","",LEFT(K130,2)/100) -> 0.85 | N130: =IF(K130="","",RIGHT(K130,3)/100) -> 1.15
B131: 2 | C131: =IF(ISBLANK(C99),"",C99) -> GS <50 | E131: =I99 -> 0.9937000148 | G131: =IF(E131=0,"",E131) -> 0.9937000148 | I131: =IF(G131=0,"",G131) -> 0.9937000148 | K131: =IF(ISBLANK(K99),"",K99) -> 80 - 120 | M131: =IF(K131="","",LEFT(K131,2)/100) -> 0.8 | N131: =IF(K131="","",RIGHT(K131,3)/100) -> 1.2
B132: 3 | C132: GS >50-Regular | E132: 1.021383727 | G132: 1.021383727 | I132: 1.021383727 | K132: 80 - 120 | M132: 0.8 | N132: 1.2
B133: 4 | C133: Large Use >5MW | E133: 0.8644944471 | G133: 0.8644944471 | I133: 0.8644944471 | K133: 85 - 115 | M133: 0.85 | N133: 1.15
B134: 5 | C134: Street Light | E134: 0.8152458017 | G134: 0.8152458017 | I134: 0.8152458017 | K134: 80 - 120 | M134: 0.8 | N134: 1.2
B135: 6 | C135: Unmetered Scattered Load | E135: 1.067120631 | G135: 1.067120631 | I135: 1.067120631 | K135: 80 - 120 | M135: 0.8 | N135: 1.2
B136: 7 | C136: Embedded Distributor | E136: 1.083372809 | G136: 1.083372809 | I136: 1.083372809 | K136: 80 - 120 | M136: 0.8 | N136: 1.2
B137: 8
B138: 9
B139: 10
B140: 11
B141: 12
B142: 13
B143: 14
B144: 15
B145: 16
B146: 17
B147: 18
B148: 19
B149: 20
B152: (11) | C152: The applicant should complete Table D if it is applying for approval of a revenue-to-cost ratio in 2021 that is outside of the OEB's policy range for any customer class. Table D will show that the distributor is likely to enter into the 2022 and 2023 Price Cap IR models, as necessary. For 2022 and 2023, enter the planned revenue-to-cost ratios that will be "Change" or "No Change" in 2019 (in the current Revenue/Cost Ratio Adjustment Workform, Worksheet C1.1 'Decision - Cost Revenue Adjustment, column d), and enter TBD for class(es) that will be entered as 'Rebalance'.

Sheet 12. Res_Rate_Design (hidden)
B14: New Rate Design Policy For Residential Customers
B16: Please complete the following tables.
B18: A | C18: Data Inputs (from Sheet 10. Load Forecast)
C20: Test Year Billing Determinants for Residential Class
C21: Customers | D21: =VLOOKUP("Residential",'13. Rate Design'!D28:L47,5,FALSE) -> 51719
C22: kWh | D22: =VLOOKUP("Residential",'13. Rate Design'!D28:L47,7,FALSE) -> 398047339
C24: Proposed Residential Class Specific Revenue Requirement1 | D24: =VLOOKUP("Residential",'11. Cost_Allocation'!C62:K81,7,FALSE) -> 20314851
C26: Residential Base Rates on Current Tariff
C27: Monthly Fixed Charge ($)
C28: Distribution Volumetric Rate ($/kWh)
B31: B | C31: Current Fixed/Variable Split
D33: Base Rates | E33: Billing Determinants | F33: Revenue | G33: % of Total Revenue
C34: Fixed | D34: =IF(D27="","",D27) ->  | E34: =IF(D21="","",D21) -> 51719 | F34: =IF(ISERROR(D34*E34*12),"",D34*E34*12) ->  | G34: =IF(ISERROR(F34/F36),"",F34/F36) -> 
C35: Variable | D35: =IF(D28="","",D28) ->  | E35: =IF(D22="","",D22) -> 398047339 | F35: =IF(ISERROR(D35*E35),"",D35*E35) ->  | G35: =IF(ISERROR(F35/F36),"",F35/F36) -> 
C36: TOTAL | D36: - | E36: - | F36: =IF(ISERROR(F34+F35),"",F34+F35) ->  | G36: -
B38: C | C38: Calculating Test Year Base Rates
C40: Number of Remaining Rate Design Policy Transition Years2
D42: Test Year Revenue @ Current F/V Split | E42: Test Year Base Rates @ Current F/V Split | F42: Reconciliation - Test Year Base Rates @ Current F/V Split
C43: Fixed | D43: =IF(ISERROR(D$24*G34),"",D$24*G34) ->  | E43: =IF(ISERROR(ROUND(D43/D21/12,2)),"",ROUND(D43/D21/12,2)) ->  | F43: =IF(ISERROR(E43*D21*12),"",E43*D21*12) -> 
C44: Variable | D44: =IF(ISERROR(D$24*G35),"",D$24*G35) ->  | E44: =IF(ISERROR(ROUND(D44/D22,4)),"",ROUND(D44/D22,4)) ->  | F44: =IF(ISERROR(E44*D22),"",E44*D22) -> 
C45: TOTAL | D45: =IF(ISERROR(D43+D44),"",D43+D44) ->  | E45: - | F45: =IF(ISERROR(F43+F44),"",F43+F44) -> 
D47: New F/V Split | E47: Revenue @ new F/V Split | F47: Final Adjusted Base Rates | G47: Revenue Reconciliation @ Adjusted Rates
C48: Fixed | D48: =IF(ISERROR(((1-G34)/D40)+G34),"",((1-G34)/D40)+G34) ->  | E48: =IF(ISERROR(D48*D$24),"",D48*D$24) ->  | F48: =IF(ISERROR(ROUND(E48/D21/12,2)),"",ROUND(E48/D21/12,2)) ->  | G48: =IF(ISERROR(F48*12*D21),"",F48*12*D21) -> 
C49: Variable | D49: =IF(ISERROR(1-D48),"",1-D48) ->  | E49: =IF(ISERROR(D49*D$24),"",D49*D$24) ->  | F49: =IF(ISERROR(ROUND(E49/D22,4)),"",ROUND(E49/D22,4)) ->  | G49: =IF(ISERROR(F49*D22),"",F49*D22) -> 
C50: TOTAL | D50: - | E50: =IF(ISERROR(SUM(E48:E49)),"",SUM(E48:E49)) -> 0 | F50: - | G50: =IF(ISERROR(G48+G49),"",G48+G49) -> 
C52: Checks3
C53: Change in Fixed Rate | D53: =IF(ISERROR(F48-E43),"",F48-E43) -> 
C54: Difference Between Revenues @ Proposed Rates and Class Specific Revenue Requirement | D54: =IF(ISERROR((F48*12*D21)+(F49*D22)-D24),"",(F48*12*D21)+(F49*D22)-D24) -> 
D55: =IF(ISERROR(D54/D24), "", D54/D24) -> 
B57: Notes:
B59: 1 | C59: The final residential class specific revenue requirement, excluding allocated Miscellaneous Revenues, as shown on Sheet 11. Cost Allocation, should be used (i.e. the revenue requirement after any proposed adjustments to R/C ratios).
B62: 2 | C62: The distributor should enter the number of years remaining before the transition to fully fixed rates is completed. The change in residential rate design is almost complete and distributors should have either 0 or 1 year remaining. If the distributor has fully transitioned to fixed rates put "0" in cell D40. If the distributor has proposed an additional transition year because the change in the residential rate design will result in the fixed charge increasing by more than $4/year, put "1" in cell D40.
B67: 3 | C67: Change in fixed rate due to rate design policy should be less than $4. The difference between the proposed class revenue requirement and the revenue at calculated base rates should be minimal (i.e. should be reasonably considered as a rounding error)

Sheet 13. Rate Design
AC4: ='3. Data_Input_Sheet'!E12 -> Initial Application | AD4: 1 | AE4: F | AF4: H | AG4: J
AC5: =IF(ISBLANK('3. Data_Input_Sheet'!M12)," ",'3. Data_Input_Sheet'!M12) -> Settlement Agreement | AD5: 2 | AE5: L | AF5: N | AG5: P
AC6: ='3. Data_Input_Sheet'!U12 -> Per Board Decision | AD6: 3 | AE6: R | AF6: T | AG6: V
B15: Rate Design and Revenue Reconciliation
B17: This sheet replaces Appendix 2-V, and provides a simplified model for calculating the standard monthly and voluemtric rates based on the allocated class revenues and fixed/variable split resulting from the cost allocation study and rate design and as proposed by the applicant. However, the RRWF does not replace the rate generator model that an applicant distributor may use in support of its application. The RRWF provides a demonstrative check on the derivation of the revenue requirement and on the proposed base distribution rates to recover the revenue requirement, based on summary information from a more detailed rate generator model and other models that applicants use for cost allocation, load forecasting, taxes/PILs, etc.
D20: Stage in Process: | H20: =IF(ISBLANK('10. Load Forecast'!F22),"",'10. Load Forecast'!F22) -> Settlement Agreement | O20: Class Allocated Revenues | AA20: Distribution Rates | AK20: Revenue Reconciliation
D22: Customer and Load Forecast | O22: From Sheet 11. Cost Allocation and Sheet 12. Residential Rate Design | U22: Fixed / Variable Splits 2
U23: Percentage to be entered as a fraction between 0 and 1
D24: Customer Class | F24: Volumetric Charge Determinant | H24: Customers / Connections | J24: kWh | L24: kW or kVA | O24: Total Class Revenue Requirement | Q24: Monthly Service Charge | S24: Volumetric | Y24: Transformer Ownership Allowance 1 ($) | AA24: =Q24 -> Monthly Service Charge | AE24: Volumetric Rate | AO24: Distribution Revenues less Transformer Ownership Allowance
U25: Fixed | W25: Variable
D26: From sheet 10. Load Forecast | AA26: Rate | AC26: No. of decimals | AE26: Rate | AI26: No. of decimals | AK26: MSC Revenues | AM26: Volumetric revenues
B28: 1 | D28: =IF(ISBLANK('10. Load Forecast'!D29),"",'10. Load Forecast'!D29) -> Residential | F28: kWh | H28: =IF(ISBLANK($H$20),0,IF($H$20=$AC$4,'10. Load Forecast'!F29,IF($H$20=$AC$5,'10. Load Forecast'!L29,'10. Load Forecast'!R29))) -> 51719 | J28: =IF(ISBLANK($H$20),0,IF($H$20=$AC$4,'10. Load Forecast'!H29,IF($H$20=$AC$5,'10. Load Forecast'!N29,'10. Load Forecast'!T29))) -> 398047339 | L28: =IF(ISBLANK($H$20),0,IF($H$20=$AC$4,'10. Load Forecast'!J29,IF($H$20=$AC$5,'10. Load Forecast'!P29,'10. Load Forecast'!V29))) -> 0 | O28: =IF(ISBLANK('11. Cost_Allocation'!I62),"",'11. Cost_Allocation'!I62) -> 20314851 | Q28: =IF(ISBLANK(U28),"",O28*U28) -> 20314851 | S28: =IF(Q28="","",O28-Q28) -> 0 | U28: 1 | W28: =IF(ISBLANK(U28),"",1-U28) -> 0 | Y28: 0 | AA28: =IF(O28="","",IF(H28=0,0,IF(U28=0,0,ROUND(Q28/(H28*12),AC28)))) -> 32.73 | AC28: 2 | AE28: =IF(S28="","",ROUND(IF(F28="kWh",(S28+Y28)/J28,(S28+Y28)/L28),AI28)) -> 0 | AG28: =IF(ISBLANK(F28),"",CONCATENATE("/",F28)) -> /kWh | AI28: 4 | AK28: =IF(AA28="",0,AA28*H28*12) -> 20313154.44 | AM28: =ROUND(IF(AE28="",0,IF(F28="kWh",J28*AE28,IF(F28="kW",IF(AE28="",0,AE28*L28)))),AI28) -> 0 | AO28: =ROUND(AK28+AM28-Y28,2) -> 20313154.44
B29: 2 | D29: =IF(ISBLANK('10. Load Forecast'!D30),"",'10. Load Forecast'!D30) -> GS <50 | F29: kWh | H29: =IF(ISBLANK($H$20),0,IF($H$20=$AC$4,'10. Load Forecast'!F30,IF($H$20=$AC$5,'10. Load Forecast'!L30,'10. Load Forecast'!R30))) -> 5989 | J29: =IF(ISBLANK($H$20),0,IF($H$20=$AC$4,'10. Load Forecast'!H30,IF($H$20=$AC$5,'10. Load Forecast'!N30,'10. Load Forecast'!T30))) -> 197054213 | L29: =IF(ISBLANK($H$20),0,IF($H$20=$AC$4,'10. Load Forecast'!J30,IF($H$20=$AC$5,'10. Load Forecast'!P30,'10. Load Forecast'!V30))) -> 0 | O29: =IF(ISBLANK('11. Cost_Allocation'!I63),"",'11. Cost_Allocation'!I63) -> 5796628 | Q29: =IF(ISBLANK(U29),"",O29*U29) -> 2422670.148 | S29: =IF(Q29="","",O29-Q29) -> 3373957.852 | U29: 0.417944734 | W29: =IF(ISBLANK(U29),"",1-U29) -> 0.582055266 | Y29: 57458 | AA29: =IF(O29="","",IF(H29=0,0,IF(U29=0,0,ROUND(Q29/(H29*12),AC29)))) -> 33.71 | AC29: =AC28 -> 2 | AE29: =IF(S29="","",ROUND(IF(F29="kWh",(S29+Y29)/J29,(S29+Y29)/L29),AI29)) -> 0.0174 | AG29: /kWh | AI29: =AI28 -> 4 | AK29: =IF(AA29="",0,AA29*H29*12) -> 2422670.28 | AM29: =ROUND(IF(AE29="",0,IF(F29="kWh",J29*AE29,IF(F29="kW",IF(AE29="",0,AE29*L29)))),AI29) -> 3428743.306 | AO29: =ROUND(AK29+AM29-Y29,2) -> 5793955.59
B30: 3 | D30: =IF(ISBLANK('10. Load Forecast'!D31),"",'10. Load Forecast'!D31) -> GS >50-Regular | F30: kW | H30: =IF(ISBLANK($H$20),0,IF($H$20=$AC$4,'10. Load Forecast'!F31,IF($H$20=$AC$5,'10. Load Forecast'!L31,'10. Load Forecast'!R31))) -> 774 | J30: =IF(ISBLANK($H$20),0,IF($H$20=$AC$4,'10. Load Forecast'!H31,IF($H$20=$AC$5,'10. Load Forecast'!N31,'10. Load Forecast'!T31))) -> 700573709 | L30: =IF(ISBLANK($H$20),0,IF($H$20=$AC$4,'10. Load Forecast'!J31,IF($H$20=$AC$5,'10. Load Forecast'!P31,'10. Load Forecast'!V31))) -> 1773328 | O30: =IF(ISBLANK('11. Cost_Allocation'!I64),"",'11. Cost_Allocation'!I64) -> 10316354 | Q30: 1169916.439 | S30: 9146437.561 | U30: 0.1134040611 | W30: 0.8865959389 | Y30: 545049 | AA30: 125.96 | AC30: =AC29 -> 2 | AE30: 5.4651 | AG30: /kW | AI30: =AI29 -> 4 | AK30: 1169916.48 | AM30: 9691414.853 | AO30: 10316282.33
B31: 4 | D31: =IF(ISBLANK('10. Load Forecast'!D32),"",'10. Load Forecast'!D32) -> Large Use >5MW | F31: kW | H31: =IF(ISBLANK($H$20),0,IF($H$20=$AC$4,'10. Load Forecast'!F32,IF($H$20=$AC$5,'10. Load Forecast'!L32,'10. Load Forecast'!R32))) -> 1 | J31: =IF(ISBLANK($H$20),0,IF($H$20=$AC$4,'10. Load Forecast'!H32,IF($H$20=$AC$5,'10. Load Forecast'!N32,'10. Load Forecast'!T32))) -> 96424273 | L31: =IF(ISBLANK($H$20),0,IF($H$20=$AC$4,'10. Load Forecast'!J32,IF($H$20=$AC$5,'10. Load Forecast'!P32,'10. Load Forecast'!V32))) -> 170568 | O31: =IF(ISBLANK('11. Cost_Allocation'!I65),"",'11. Cost_Allocation'!I65) -> 828989 | Q31: 88319.48568 | S31: 740669.5143 | U31: 0.1065387908 | W31: 0.8934612092 | Y31: 0 | AA31: 7359.96 | AC31: 2 | AE31: 4.3424 | AG31: /kW | AI31: 4 | AK31: 88319.52 | AM31: 740674.4832 | AO31: 828994
B32: 5 | D32: =IF(ISBLANK('10. Load Forecast'!D33),"",'10. Load Forecast'!D33) -> Street Light | F32: kW | H32: =IF(ISBLANK($H$20),0,IF($H$20=$AC$4,'10. Load Forecast'!F33,IF($H$20=$AC$5,'10. Load Forecast'!L33,'10. Load Forecast'!R33))) -> 15005 | J32: =IF(ISBLANK($H$20),0,IF($H$20=$AC$4,'10. Load Forecast'!H33,IF($H$20=$AC$5,'10. Load Forecast'!N33,'10. Load Forecast'!T33))) -> 3347727 | L32: =IF(ISBLANK($H$20),0,IF($H$20=$AC$4,'10. Load Forecast'!J33,IF($H$20=$AC$5,'10. Load Forecast'!P33,'10. Load Forecast'!V33))) -> 9302 | O32: =IF(ISBLANK('11. Cost_Allocation'!I66),"",'11. Cost_Allocation'!I66) -> 158336 | Q32: 64363.584 | S32: 93972.416 | U32: 0.4065 | W32: 0.5935 | Y32: 0 | AA32: 0.36 | AC32: 2 | AE32: 10.1024 | AG32: /kW | AI32: 4 | AK32: 64821.6 | AM32: 93972.5248 | AO32: 158794.12
B33: 6 | D33: =IF(ISBLANK('10. Load Forecast'!D34),"",'10. Load Forecast'!D34) -> Unmetered Scattered Load | F33: kWh | H33: =IF(ISBLANK($H$20),0,IF($H$20=$AC$4,'10. Load Forecast'!F34,IF($H$20=$AC$5,'10. Load Forecast'!L34,'10. Load Forecast'!R34))) -> 540 | J33: =IF(ISBLANK($H$20),0,IF($H$20=$AC$4,'10. Load Forecast'!H34,IF($H$20=$AC$5,'10. Load Forecast'!N34,'10. Load Forecast'!T34))) -> 2947114 | L33: =IF(ISBLANK($H$20),0,IF($H$20=$AC$4,'10. Load Forecast'!J34,IF($H$20=$AC$5,'10. Load Forecast'!P34,'10. Load Forecast'!V34))) -> 0 | O33: =IF(ISBLANK('11. Cost_Allocation'!I67),"",'11. Cost_Allocation'!I67) -> 115960 | Q33: 72576.28254 | S33: 43383.71746 | U33: 0.6258734266 | W33: 0.3741265734 | Y33: 0 | AA33: 11.2 | AC33: 2 | AE33: 0.0147 | AG33: /kWh | AI33: 4 | AK33: 72576 | AM33: 43322.5758 | AO33: 115898.58
B34: 7 | D34: =IF(ISBLANK('10. Load Forecast'!D35),"",'10. Load Forecast'!D35) -> Embedded Distributor | F34: kW | H34: =IF(ISBLANK($H$20),0,IF($H$20=$AC$4,'10. Load Forecast'!F35,IF($H$20=$AC$5,'10. Load Forecast'!L35,'10. Load Forecast'!R35))) -> 1 | J34: =IF(ISBLANK($H$20),0,IF($H$20=$AC$4,'10. Load Forecast'!H35,IF($H$20=$AC$5,'10. Load Forecast'!N35,'10. Load Forecast'!T35))) -> 41857714 | L34: =IF(ISBLANK($H$20),0,IF($H$20=$AC$4,'10. Load Forecast'!J35,IF($H$20=$AC$5,'10. Load Forecast'!P35,'10. Load Forecast'!V35))) -> 103033 | O34: =IF(ISBLANK('11. Cost_Allocation'!I68),"",'11. Cost_Allocation'!I68) -> 2220 | Q34: 0 | S34: 2220 | U34: 0 | W34: 1 | Y34: 0 | AA34: 0 | AC34: 2 | AE34: 0.0215 | AG34: /kW | AI34: 4 | AK34: 0 | AM34: 2215.2095 | AO34: 2215.21
B35: 8 | D35: =IF(ISBLANK('10. Load Forecast'!D36),"",'10. Load Forecast'!D36) ->  | H35: =IF(ISBLANK($H$20),0,IF($H$20=$AC$4,'10. Load Forecast'!F36,IF($H$20=$AC$5,'10. Load Forecast'!L36,'10. Load Forecast'!R36))) -> 0 | J35: =IF(ISBLANK($H$20),0,IF($H$20=$AC$4,'10. Load Forecast'!H36,IF($H$20=$AC$5,'10. Load Forecast'!N36,'10. Load Forecast'!T36))) -> 0 | L35: =IF(ISBLANK($H$20),0,IF($H$20=$AC$4,'10. Load Forecast'!J36,IF($H$20=$AC$5,'10. Load Forecast'!P36,'10. Load Forecast'!V36))) -> 0 | O35: =IF(ISBLANK('11. Cost_Allocation'!I69),"",'11. Cost_Allocation'!I69) ->  | AC35: 2 | AI35: 4 | AK35: 0 | AM35: 0 | AO35: 0
B36: 9 | D36: =IF(ISBLANK('10. Load Forecast'!D37),"",'10. Load Forecast'!D37) ->  | H36: =IF(ISBLANK($H$20),0,IF($H$20=$AC$4,'10. Load Forecast'!F37,IF($H$20=$AC$5,'10. Load Forecast'!L37,'10. Load Forecast'!R37))) -> 0 | J36: =IF(ISBLANK($H$20),0,IF($H$20=$AC$4,'10. Load Forecast'!H37,IF($H$20=$AC$5,'10. Load Forecast'!N37,'10. Load Forecast'!T37))) -> 0 | L36: =IF(ISBLANK($H$20),0,IF($H$20=$AC$4,'10. Load Forecast'!J37,IF($H$20=$AC$5,'10. Load Forecast'!P37,'10. Load Forecast'!V37))) -> 0 | O36: =IF(ISBLANK('11. Cost_Allocation'!I70),"",'11. Cost_Allocation'!I70) ->  | AC36: 2 | AI36: 4 | AK36: 0 | AM36: 0 | AO36: 0
B37: 10 | D37: =IF(ISBLANK('10. Load Forecast'!D38),"",'10. Load Forecast'!D38) ->  | H37: =IF(ISBLANK($H$20),0,IF($H$20=$AC$4,'10. Load Forecast'!F38,IF($H$20=$AC$5,'10. Load Forecast'!L38,'10. Load Forecast'!R38))) -> 0 | J37: =IF(ISBLANK($H$20),0,IF($H$20=$AC$4,'10. Load Forecast'!H38,IF($H$20=$AC$5,'10. Load Forecast'!N38,'10. Load Forecast'!T38))) -> 0 | L37: =IF(ISBLANK($H$20),0,IF($H$20=$AC$4,'10. Load Forecast'!J38,IF($H$20=$AC$5,'10. Load Forecast'!P38,'10. Load Forecast'!V38))) -> 0 | O37: =IF(ISBLANK('11. Cost_Allocation'!I71),"",'11. Cost_Allocation'!I71) ->  | AC37: 2 | AI37: 4 | AK37: 0 | AM37: 0 | AO37: 0
B38: 11 | D38: =IF(ISBLANK('10. Load Forecast'!D39),"",'10. Load Forecast'!D39) ->  | H38: =IF(ISBLANK($H$20),0,IF($H$20=$AC$4,'10. Load Forecast'!F39,IF($H$20=$AC$5,'10. Load Forecast'!L39,'10. Load Forecast'!R39))) -> 0 | J38: =IF(ISBLANK($H$20),0,IF($H$20=$AC$4,'10. Load Forecast'!H39,IF($H$20=$AC$5,'10. Load Forecast'!N39,'10. Load Forecast'!T39))) -> 0 | L38: =IF(ISBLANK($H$20),0,IF($H$20=$AC$4,'10. Load Forecast'!J39,IF($H$20=$AC$5,'10. Load Forecast'!P39,'10. Load Forecast'!V39))) -> 0 | O38: =IF(ISBLANK('11. Cost_Allocation'!I72),"",'11. Cost_Allocation'!I72) ->  | AC38: 2 | AI38: 4 | AK38: 0 | AM38: 0 | AO38: 0
B39: 12 | D39: =IF(ISBLANK('10. Load Forecast'!D40),"",'10. Load Forecast'!D40) ->  | H39: =IF(ISBLANK($H$20),0,IF($H$20=$AC$4,'10. Load Forecast'!F40,IF($H$20=$AC$5,'10. Load Forecast'!L40,'10. Load Forecast'!R40))) -> 0 | J39: =IF(ISBLANK($H$20),0,IF($H$20=$AC$4,'10. Load Forecast'!H40,IF($H$20=$AC$5,'10. Load Forecast'!N40,'10. Load Forecast'!T40))) -> 0 | L39: =IF(ISBLANK($H$20),0,IF($H$20=$AC$4,'10. Load Forecast'!J40,IF($H$20=$AC$5,'10. Load Forecast'!P40,'10. Load Forecast'!V40))) -> 0 | O39: =IF(ISBLANK('11. Cost_Allocation'!I73),"",'11. Cost_Allocation'!I73) ->  | AC39: 2 | AI39: 4 | AK39: 0 | AM39: 0 | AO39: 0
B40: 13 | D40: =IF(ISBLANK('10. Load Forecast'!D41),"",'10. Load Forecast'!D41) ->  | H40: =IF(ISBLANK($H$20),0,IF($H$20=$AC$4,'10. Load Forecast'!F41,IF($H$20=$AC$5,'10. Load Forecast'!L41,'10. Load Forecast'!R41))) -> 0 | J40: =IF(ISBLANK($H$20),0,IF($H$20=$AC$4,'10. Load Forecast'!H41,IF($H$20=$AC$5,'10. Load Forecast'!N41,'10. Load Forecast'!T41))) -> 0 | L40: =IF(ISBLANK($H$20),0,IF($H$20=$AC$4,'10. Load Forecast'!J41,IF($H$20=$AC$5,'10. Load Forecast'!P41,'10. Load Forecast'!V41))) -> 0 | O40: =IF(ISBLANK('11. Cost_Allocation'!I74),"",'11. Cost_Allocation'!I74) ->  | AC40: 2 | AI40: 4 | AK40: 0 | AM40: 0 | AO40: 0
B41: 14 | D41: =IF(ISBLANK('10. Load Forecast'!D42),"",'10. Load Forecast'!D42) ->  | H41: =IF(ISBLANK($H$20),0,IF($H$20=$AC$4,'10. Load Forecast'!F42,IF($H$20=$AC$5,'10. Load Forecast'!L42,'10. Load Forecast'!R42))) -> 0 | J41: =IF(ISBLANK($H$20),0,IF($H$20=$AC$4,'10. Load Forecast'!H42,IF($H$20=$AC$5,'10. Load Forecast'!N42,'10. Load Forecast'!T42))) -> 0 | L41: =IF(ISBLANK($H$20),0,IF($H$20=$AC$4,'10. Load Forecast'!J42,IF($H$20=$AC$5,'10. Load Forecast'!P42,'10. Load Forecast'!V42))) -> 0 | O41: =IF(ISBLANK('11. Cost_Allocation'!I75),"",'11. Cost_Allocation'!I75) ->  | AC41: 2 | AI41: 4 | AK41: 0 | AM41: 0 | AO41: 0
B42: 15 | D42: =IF(ISBLANK('10. Load Forecast'!D43),"",'10. Load Forecast'!D43) ->  | H42: =IF(ISBLANK($H$20),0,IF($H$20=$AC$4,'10. Load Forecast'!F43,IF($H$20=$AC$5,'10. Load Forecast'!L43,'10. Load Forecast'!R43))) -> 0 | J42: =IF(ISBLANK($H$20),0,IF($H$20=$AC$4,'10. Load Forecast'!H43,IF($H$20=$AC$5,'10. Load Forecast'!N43,'10. Load Forecast'!T43))) -> 0 | L42: =IF(ISBLANK($H$20),0,IF($H$20=$AC$4,'10. Load Forecast'!J43,IF($H$20=$AC$5,'10. Load Forecast'!P43,'10. Load Forecast'!V43))) -> 0 | O42: =IF(ISBLANK('11. Cost_Allocation'!I76),"",'11. Cost_Allocation'!I76) ->  | AC42: 2 | AI42: 4 | AK42: 0 | AM42: 0 | AO42: 0
B43: 16 | D43: =IF(ISBLANK('10. Load Forecast'!D44),"",'10. Load Forecast'!D44) ->  | H43: =IF(ISBLANK($H$20),0,IF($H$20=$AC$4,'10. Load Forecast'!F44,IF($H$20=$AC$5,'10. Load Forecast'!L44,'10. Load Forecast'!R44))) -> 0 | J43: =IF(ISBLANK($H$20),0,IF($H$20=$AC$4,'10. Load Forecast'!H44,IF($H$20=$AC$5,'10. Load Forecast'!N44,'10. Load Forecast'!T44))) -> 0 | L43: =IF(ISBLANK($H$20),0,IF($H$20=$AC$4,'10. Load Forecast'!J44,IF($H$20=$AC$5,'10. Load Forecast'!P44,'10. Load Forecast'!V44))) -> 0 | O43: =IF(ISBLANK('11. Cost_Allocation'!I77),"",'11. Cost_Allocation'!I77) ->  | AC43: 2 | AI43: 4 | AK43: 0 | AM43: 0 | AO43: 0
B44: 17 | D44: =IF(ISBLANK('10. Load Forecast'!D45),"",'10. Load Forecast'!D45) ->  | H44: =IF(ISBLANK($H$20),0,IF($H$20=$AC$4,'10. Load Forecast'!F45,IF($H$20=$AC$5,'10. Load Forecast'!L45,'10. Load Forecast'!R45))) -> 0 | J44: =IF(ISBLANK($H$20),0,IF($H$20=$AC$4,'10. Load Forecast'!H45,IF($H$20=$AC$5,'10. Load Forecast'!N45,'10. Load Forecast'!T45))) -> 0 | L44: =IF(ISBLANK($H$20),0,IF($H$20=$AC$4,'10. Load Forecast'!J45,IF($H$20=$AC$5,'10. Load Forecast'!P45,'10. Load Forecast'!V45))) -> 0 | O44: =IF(ISBLANK('11. Cost_Allocation'!I78),"",'11. Cost_Allocation'!I78) ->  | AC44: 2 | AI44: 4 | AK44: 0 | AM44: 0 | AO44: 0
B45: 18 | D45: =IF(ISBLANK('10. Load Forecast'!D46),"",'10. Load Forecast'!D46) ->  | H45: =IF(ISBLANK($H$20),0,IF($H$20=$AC$4,'10. Load Forecast'!F46,IF($H$20=$AC$5,'10. Load Forecast'!L46,'10. Load Forecast'!R46))) -> 0 | J45: =IF(ISBLANK($H$20),0,IF($H$20=$AC$4,'10. Load Forecast'!H46,IF($H$20=$AC$5,'10. Load Forecast'!N46,'10. Load Forecast'!T46))) -> 0 | L45: =IF(ISBLANK($H$20),0,IF($H$20=$AC$4,'10. Load Forecast'!J46,IF($H$20=$AC$5,'10. Load Forecast'!P46,'10. Load Forecast'!V46))) -> 0 | O45: =IF(ISBLANK('11. Cost_Allocation'!I79),"",'11. Cost_Allocation'!I79) ->  | AC45: 2 | AI45: 4 | AK45: 0 | AM45: 0 | AO45: 0 | AQ45: Distribution Revenues including TOA Credit Recovery in Rates
B46: 19 | D46: =IF(ISBLANK('10. Load Forecast'!D47),"",'10. Load Forecast'!D47) ->  | H46: =IF(ISBLANK($H$20),0,IF($H$20=$AC$4,'10. Load Forecast'!F47,IF($H$20=$AC$5,'10. Load Forecast'!L47,'10. Load Forecast'!R47))) -> 0 | J46: =IF(ISBLANK($H$20),0,IF($H$20=$AC$4,'10. Load Forecast'!H47,IF($H$20=$AC$5,'10. Load Forecast'!N47,'10. Load Forecast'!T47))) -> 0 | L46: =IF(ISBLANK($H$20),0,IF($H$20=$AC$4,'10. Load Forecast'!J47,IF($H$20=$AC$5,'10. Load Forecast'!P47,'10. Load Forecast'!V47))) -> 0 | O46: =IF(ISBLANK('11. Cost_Allocation'!I80),"",'11. Cost_Allocation'!I80) ->  | AC46: 2 | AI46: 4 | AK46: 0 | AM46: 0 | AO46: 0
B47: 20 | D47: =IF(ISBLANK('10. Load Forecast'!D48),"",'10. Load Forecast'!D48) ->  | H47: =IF(ISBLANK($H$20),0,IF($H$20=$AC$4,'10. Load Forecast'!F48,IF($H$20=$AC$5,'10. Load Forecast'!L48,'10. Load Forecast'!R48))) -> 0 | J47: =IF(ISBLANK($H$20),0,IF($H$20=$AC$4,'10. Load Forecast'!H48,IF($H$20=$AC$5,'10. Load Forecast'!N48,'10. Load Forecast'!T48))) -> 0 | L47: =IF(ISBLANK($H$20),0,IF($H$20=$AC$4,'10. Load Forecast'!J48,IF($H$20=$AC$5,'10. Load Forecast'!P48,'10. Load Forecast'!V48))) -> 0 | O47: =IF(ISBLANK('11. Cost_Allocation'!I81),"",'11. Cost_Allocation'!I81) ->  | AC47: 2 | AI47: 4 | AK47: 0 | AM47: 0 | AO47: 0
S49: Total Transformer Ownership Allowance | Y49: =SUM(Y28:Y47) -> 602507 | AJ49: Total Distribution Revenues | AO49: =SUM(AO28:AO47) -> 37529294.27 | AQ49: =SUM(AK28:AK47)+SUM(AM28:AM47) -> 38131801.27
AQ50: =AO49+Y49 -> 38131801.27
AE51: =IF(AO54="","",IF((ABS(AO54)<=0.5%),"Rates recover revenue requirement","Revenues recovered from rates deviate materially from revenue requirement - check data inputs and calculations")) -> Rates recover revenue requirement | AJ51: Base Revenue Requirement | AO51: =IF(H20="",0,IF(H20=AC4,'9. Rev_Reqt'!F28,IF(H20=AC5,'9. Rev_Reqt'!J28,'9. Rev_Reqt'!N28))) -> 37533339.1
B52: Notes:
AJ53: Difference | AO53: =AO49-AO51 -> -4044.831741
B54: 1 | D54: Transformer Ownership Allowance is entered as a positive amount, and only for those classes to which it applies. | AJ54: % Difference | AO54: =IF(AO51=0,"",AO53/AO51) -> -0.0001077663709
B56: 2 | D56: The Fixed/Variable split, for each customer class, drives the "rate generator" portion of this sheet of the RRWF. Only the "fixed" fraction is entered, as the sum of the "fixed" and "variable" portions must sum to 100%. For a distributor that may set the Monthly Service Charge, the "fixed" ratio is calcutated as: [MSC x (average number of customers or connections) x 12 months] / (Class Allocated Revenue Requirement).

Sheet 14. Tracking_Sheet
B14: Tracking Form
B15: The first row shown, labelled "Original Application", summarizes key statistics based on the data inputs into the RRWF. After the original application filing, the applicant provides key changes in capital and operating expenses, load forecasts, cost of capital, etc., as revised through the processing of the application. This could be due to revisions or responses to interrogatories. The last row shown is the most current estimate of the cost of service data reflecting the original application and any updates provided by the applicant distributor (for updated evidence, responses to interrogatories, undertakings, etc.) Please ensure a Reference (Column B) and/or Item Description (Column C) is entered. Please note that unused rows will automatically be hidden and the PRINT AREA set when the PRINT BUTTON on Sheet 1 is activated. (1) Short reference to evidence material (interrogatory response, undertaking, exhibit number, Board Decision, Code, Guideline, Report of the Board, etc.) (2) Short description of change, issue, etc. 60 Tracking Rows have been provided below. If you require more, please contact Industry Relations @ IndustryRelations@ontarioenergyboard.ca.
B16: Summary of Proposed Changes
D18: Cost of Capital | F18: Rate Base and Capital Expenditures | I18: Operating Expenses | L18: Revenue Requirement
B19: Reference (1) | C19: Item / Description (2) | D19: Regulated Return on Capital | E19: Regulated Rate of Return | F19: Rate Base | G19: Working Capital | H19: Working Capital Allowance ($) | I19: Amortization / Depreciation | J19: Taxes/PILs | K19: OM&A | L19: Service Revenue Requirement | M19: Other Revenues | N19: Base Revenue Requirement | O19: Grossed up Revenue Deficiency / Sufficiency
C21: Original Application | D21: ='7. Cost_of_Capital'!P26 -> 13310227.01 | E21: ='7. Cost_of_Capital'!L26 -> 0.0543973091 | F21: ='4. Rate_Base'!G18 -> 244685393.9 | G21: ='4. Rate_Base'!G26 -> 215060066 | H21: ='4. Rate_Base'!G30 -> 16129504.95 | I21: ='9. Rev_Reqt'!F16 -> 11100527 | J21: ='9. Rev_Reqt'!F19 -> 889323.8095 | K21: ='9. Rev_Reqt'!F15 -> 15777057 | L21: ='9. Rev_Reqt'!F25 -> 41548754.82 | M21: ='9. Rev_Reqt'!F32 -> 2250668 | N21: ='9. Rev_Reqt'!F28 -> 39298086.82 | O21: ='8. Rev_Def_Suff'!F52 -> 2624363.659
A23: 1 | B23: Load Forecast Update 3-Staff-36, 9-Staff-78-79 | C23: Updated load forecast per 1-Staff-1 | D23: 13317222.05 | E23: 0.0543973091 | F23: 244813985.7 | G23: 216774622 | H23: 16258096.65 | I23: 11100527 | J23: 889323.8095 | K23: 15777057 | L23: 41555749.86 | M23: 2250668 | N23: 39305081.86 | O23: 2554177.859 | Q23: =IF(AND(ISBLANK(B23), ISBLANK(C23)), "X", "") -> 
C24: Change | D24: =IF(D23="","",D23-D21) -> 6995.042452 | E24: =IF(E23="","",E23-E21) -> 0 | F24: 128591.7 | G24: 1714556 | H24: 128591.7 | I24: 0 | J24: 0 | K24: 0 | L24: 6995.042452 | M24: 0 | N24: 6995.042452 | O24: -70185.80087
A26: 2 | B26: Capital Update 2-Staff-8 | C26: Updated capital additions and depreciation | D26: 13268313.33 | E26: 0.0543973091 | F26: 243914883.8 | G26: 216780290 | H26: 16258521.75 | I26: 11048476 | J26: 889323.8095 | K26: 15777057 | L26: 41454790.13 | M26: 2250668 | N26: 39204122.13 | O26: 2453218.135 | Q26: =IF(AND(ISBLANK(B26), ISBLANK(C26)), "X", "") -> 
C27: Change | D27: =IF(D26="","",D26-D23) -> -48908.72397 | E27: 0 | F27: -899101.9 | G27: 5668 | H27: 425.1 | I27: -52051 | J27: 0 | K27: 0 | L27: -100959.724 | M27: 0 | N27: -100959.724 | O27: -100959.724
A29: 3 | B29: OM&A Update 4-Staff-53(b), 4-Staff-51(c ) | C29: OM&A Updates - union ratification & intervenor costs | D29: 13268649.27 | E29: 0.0543973091 | F29: 243921059.5 | G29: 216862633 | H29: 16264697.47 | I29: 11048476 | J29: 889323.8095 | K29: 15859400 | L29: 41537469.08 | M29: 2250668 | N29: 39286801.08 | O29: 2535897.077 | Q29: =IF(AND(ISBLANK(B29), ISBLANK(C29)), "X", "") -> 
C30: Change | D30: =IF(D29="","",D29-D26) -> 335.9428217 | E30: 0 | F30: 6175.725 | G30: 82343 | H30: 6175.725 | I30: 0 | J30: 0 | K30: 82343 | L30: 82678.94282 | M30: 0 | N30: 82678.94282 | O30: 82678.94282
A32: 4 | B32: Other Revenue Update 3-Staff-38, 3-VECC-35(b) | C32: Other revenue updates - retail service charges | D32: 13268649.27 | E32: 0.0543973091 | F32: 243921059.5 | G32: 216862633 | H32: 16264697.47 | I32: 11048476 | J32: 889323.8095 | K32: 15859400 | L32: 41537469.08 | M32: 2262317 | N32: 39275152.08 | O32: 2524248.077 | Q32: =IF(AND(ISBLANK(B32), ISBLANK(C32)), "X", "") -> 
C33: Change | D33: =IF(D32="","",D32-D29) -> 0 | E33: 0 | F33: 0 | G33: 0 | H33: 0 | I33: 0 | J33: 0 | K33: 0 | L33: 0 | M33: 11649 | N33: -11649 | O33: -11649
A35: 5 | B35: PILs Update 4-Staff-59, 1-Staff-1 | C35: PILs model updates incorporating all changes | D35: 13268649.27 | E35: 0.0543973091 | F35: 243921059.5 | G35: 216862633 | H35: 16264697.47 | I35: 11048476 | J35: 782125.1701 | K35: 15859400 | L35: 41430270.44 | M35: 2262317 | N35: 39167953.44 | O35: 2417049.438 | Q35: =IF(AND(ISBLANK(B35), ISBLANK(C35)), "X", "") -> 
C36: Change | D36: =IF(D35="","",D35-D32) -> 0 | E36: 0 | F36: 0 | G36: 0 | H36: 0 | I36: 0 | J36: -107198.6395 | K36: 0 | L36: -107198.6395 | M36: 0 | N36: -107198.6395 | O36: -107198.6395
A38: 6 | B38: Pre-Settlement 4-Staff-100, SEC-73 | C38: OM&A, COP adjustments & related PILs | D38: 13145336.51 | E38: 0.0543973091 | F38: 241654168.7 | G38: 186637422 | H38: 13997806.65 | I38: 11048476 | J38: 754270.7483 | K38: 15854400 | L38: 41274103.26 | M38: 2262317 | N38: 39011786.26 | O38: 2260882.905 | Q38: =IF(AND(ISBLANK(B38), ISBLANK(C38)), "X", "") -> 
C39: Change | D39: =IF(D38="","",D38-D35) -> -123312.7609 | E39: 0 | F39: -2266890.825 | G39: -30225211 | H39: -2266890.825 | I39: 0 | J39: -27854.42177 | K39: -5000 | L39: -156167.1827 | M39: 0 | N39: -156167.1827 | O39: -156166.5324
A41: 7 | B41: Settlement VECC-63, 3.1 | C41: CDM in LF correction | D41: 13145313.32 | E41: 0.0543973091 | F41: 241653742.4 | G41: 186631739 | H41: 13997380.42 | I41: 11048476 | J41: 754265.3061 | K41: 15854400 | L41: 41274074.63 | M41: 2262317 | N41: 39011757.63 | O41: 2261283.483 | Q41: =IF(AND(ISBLANK(B41), ISBLANK(C41)), "X", "") -> 
C42: Change | D42: =IF(D41="","",D41-D38) -> -23.18549307 | E42: 0 | F42: -426.225 | G42: -5683 | H42: -426.225 | I42: 0 | J42: -5.442176871 | K42: 0 | L42: -28.62766994 | M42: 0 | N42: -28.62766994 | O42: 400.5773325
A44: 8 | B44: Settlement 1.2, 2.1 | C44: Reallocate specific service charges from OM&A to Revenue | D44: 13145516.56 | E44: 0.0543973091 | F44: 241657478.6 | G44: 186681554 | H44: 14001116.55 | I44: 11048476 | J44: 754311.5646 | K44: 15904215 | L44: 41324139.12 | M44: 2312132 | N44: 39012007.12 | O44: 2261532.625 | Q44: =IF(AND(ISBLANK(B44), ISBLANK(C44)), "X", "") -> 
C45: Change | D45: =IF(D44="","",D44-D41) -> 203.2351465 | E45: 0 | F45: 3736.125 | G45: 49815 | H45: 3736.125 | I45: 0 | J45: 46.2585034 | K45: 49815 | L45: 50064.49365 | M45: 49815 | N45: 249.4936499 | O45: 249.1422105
A47: 9 | B47: Settlement 1.2, 2.1 | C47: Reduction to 2021 OM&A of $775,000 | D47: 13142354.71 | E47: 0.0543973091 | F47: 241599353.6 | G47: 185906554 | H47: 13942991.55 | I47: 11048476 | J47: 753597.2789 | K47: 15129215 | L47: 40545262.99 | M47: 2312132 | N47: 38233130.99 | O47: 1482656.579 | Q47: =IF(AND(ISBLANK(B47), ISBLANK(C47)), "X", "") -> 
C48: Change | D48: =IF(D47="","",D47-D44) -> -3161.843591 | E48: 0 | F48: -58125 | G48: -775000 | H48: -58125 | I48: 0 | J48: -714.2857143 | K48: -775000 | L48: -778876.1293 | M48: 0 | N48: -778876.1293 | O48: -778876.0456
A50: 10 | B50: Settlement 2.1 | C50: Change to half-year rule for depreciation | D50: 13246563.47 | E50: 0.0543973091 | F50: 243515050.6 | G50: 185906554 | H50: 13942991.55 | I50: 10752582 | J50: 665435.3741 | K50: 15129215 | L50: 40265415.85 | M50: =2312132-22512 -> 2289620 | N50: =37953283.849+22512 -> 37975795.85 | O50: =1202808.16808454+22512 -> 1225320.168 | Q50: =IF(AND(ISBLANK(B50), ISBLANK(C50)), "X", "") -> 
C51: Change | D51: =IF(D50="","",D50-D47) -> 104208.7618 | E51: 0 | F51: 1915697 | G51: 0 | H51: 0 | I51: -295894 | J51: -88161.90476 | K51: 0 | L51: -279847.1429 | M51: -22512 | N51: -257335.1429 | O51: -257336.4113
A53: 11 | B53: Settlement 1.1 | C53: Reduction to 2021 CAPEX of $550,000 | D53: =13239948.6532693+95 -> 13240043.65 | E53: 0.0543973091 | F53: =243393448.55+1740 -> 243395188.6 | G53: 185906554 | H53: 13942991.55 | I53: =10751824-6500 -> 10745324 | J53: =694138.775510204-1905 -> 692233.7755 | K53: 15129215 | L53: =40286746.4287795-8310 -> 40278436.43 | M53: =2312132-22512 -> 2289620 | N53: =37974614.4287795-8310+22512 -> 37988816.43 | O53: =1224139.28258194-8310+22512 -> 1238341.283 | Q53: =IF(AND(ISBLANK(B53), ISBLANK(C53)), "X", "") -> 
C54: Change | D54: =IF(D53="","",D53-D50) -> -6519.821581 | E54: 0 | F54: -119862 | G54: 0 | H54: 0 | I54: -7258 | J54: 26798.40136 | K54: 0 | L54: 13020.57978 | M54: 0 | N54: 13020.57978 | O54: 13021.1145
A56: 12 | B56: Settlement 2.1 | C56: OER & RPP rate update to Cost of Power | D56: 13252623.15 | E56: 0.0543973091 | F56: 243626447.2 | G56: 188990002 | H56: 14174250.15 | I56: 10745324 | J56: 695076.1905 | K56: 15129215 | L56: 40293858.34 | M56: =2312132-22512 -> 2289620 | N56: =37981726.3406092+22512 -> 38004238.34 | O56: =1231251.04741339+22512 -> 1253763.047 | Q56: =IF(AND(ISBLANK(B56), ISBLANK(C56)), "X", "") -> 
C57: Change | D57: =IF(D56="","",D56-D53) -> 12579.49686 | E57: 0 | F57: 231258.6 | G57: 3083448 | H57: 231258.6 | I57: 0 | J57: 2842.414966 | K57: 0 | L57: 15421.91183 | M57: 0 | N57: 15421.91183 | O57: 15421.76483
A59: 13 | B59: Settlement 2.1 | C59: 2021 Cost of Capital parameters | D59: 12844967.45 | E59: 0.05272402729 | F59: 243626447.2 | G59: 188990002 | H59: 14174250.15 | I59: 10745324 | J59: 631832.6531 | K59: 15129215 | L59: 39822959.1 | M59: 2289620 | N59: 37533339.1 | O59: 782863.9091 | Q59: =IF(AND(ISBLANK(B59), ISBLANK(C59)), "X", "") -> 
C60: Change | D60: =IF(D59="","",D59-D56) -> -407655.7015 | E60: -0.001673281806 | F60: 0 | G60: 0 | H60: 0 | I60: 0 | J60: -63243.53741 | K60: 0 | L60: -470899.2389 | M60: 0 | N60: -470899.2389 | O60: -470899.1383
A62: 14 | B62: Balance Check | D62: ='7. Cost_of_Capital'!$P$42 -> 12844967.45 | E62: ='7. Cost_of_Capital'!$L$42 -> 0.05272402729 | F62: ='4. Rate_Base'!$O$18 -> 243626447.2 | G62: ='4. Rate_Base'!$O$26 -> 188990002 | H62: ='4. Rate_Base'!$O$30 -> 14174250.15 | I62: ='9. Rev_Reqt'!$J$16 -> 10745324 | J62: ='9. Rev_Reqt'!$J$19 -> 631832.6531 | K62: ='9. Rev_Reqt'!$J$15 -> 15129215 | L62: ='9. Rev_Reqt'!$J$25 -> 39822959.1 | M62: ='9. Rev_Reqt'!$J$32 -> 2289620 | N62: ='9. Rev_Reqt'!$J$28 -> 37533339.1 | O62: ='8. Rev_Def_Suff'!$J$52 -> 782863.9091 | Q62: =IF(AND(ISBLANK(B62), ISBLANK(C62)), "X", "") -> 
C63: Change | D63: =IF(D62="","",D62-D59) -> 0 | E63: 0 | F63: 0 | G63: 0 | H63: 0 | I63: 0 | J63: 0 | K63: 0 | L63: 0 | M63: 0 | N63: 0 | O63: 0
A65: 15 | Q65: =IF(AND(ISBLANK(B65), ISBLANK(C65)), "X", "") -> X
C66: Change | D66: =IF(D65="","",D65-D62) -> 
A68: 16 | Q68: =IF(AND(ISBLANK(B68), ISBLANK(C68)), "X", "") -> X
C69: Change | D69: =IF(D68="","",D68-D65) -> 
A71: 17 | Q71: =IF(AND(ISBLANK(B71), ISBLANK(C71)), "X", "") -> X
C72: Change | D72: =IF(D71="","",D71-D68) -> 
A74: 18 | Q74: =IF(AND(ISBLANK(B74), ISBLANK(C74)), "X", "") -> X
C75: Change | D75: =IF(D74="","",D74-D71) -> 
R76: Page Break 1
A77: 19 | Q77: =IF(AND(ISBLANK(B77), ISBLANK(C77)), "X", "") -> X
C78: Change | D78: =IF(D77="","",D77-D74) -> 
A80: 20 | Q80: =IF(AND(ISBLANK(B80), ISBLANK(C80)), "X", "") -> X
C81: Change | D81: =IF(D80="","",D80-D77) -> 
A83: 21 | Q83: =IF(AND(ISBLANK(B83), ISBLANK(C83)), "X", "") -> X
C84: Change | D84: =IF(D83="","",D83-D80) -> 
A86: 22 | Q86: =IF(AND(ISBLANK(B86), ISBLANK(C86)), "X", "") -> X
C87: Change | D87: =IF(D86="","",D86-D83) -> 
A89: 23 | Q89: =IF(AND(ISBLANK(B89), ISBLANK(C89)), "X", "") -> X
C90: Change | D90: =IF(D89="","",D89-D86) -> 
A92: 24 | Q92: =IF(AND(ISBLANK(B92), ISBLANK(C92)), "X", "") -> X
C93: Change | D93: =IF(D92="","",D92-D89) -> 
A95: 25 | Q95: =IF(AND(ISBLANK(B95), ISBLANK(C95)), "X", "") -> X
C96: Change | D96: =IF(D95="","",D95-D92) -> 
A98: 26 | Q98: =IF(AND(ISBLANK(B98), ISBLANK(C98)), "X", "") -> X
C99: Change | D99: =IF(D98="","",D98-D95) -> 
A101: 27 | Q101: =IF(AND(ISBLANK(B101), ISBLANK(C101)), "X", "") -> X
C102: Change | D102: =IF(D101="","",D101-D98) -> 
A104: 28 | Q104: =IF(AND(ISBLANK(B104), ISBLANK(C104)), "X", "") -> X
C105: Change | D105: =IF(D104="","",D104-D101) -> 
A107: 29 | Q107: =IF(AND(ISBLANK(B107), ISBLANK(C107)), "X", "") -> X
C108: Change | D108: =IF(D107="","",D107-D104) -> 
A110: 30 | Q110: =IF(AND(ISBLANK(B110), ISBLANK(C110)), "X", "") -> X
C111: Change | D111: =IF(D110="","",D110-D107) -> 
A113: 31 | Q113: =IF(AND(ISBLANK(B113), ISBLANK(C113)), "X", "") -> X
C114: Change | D114: =IF(D113="","",D113-D110) -> 
A116: 32 | Q116: =IF(AND(ISBLANK(B116), ISBLANK(C116)), "X", "") -> X
C117: Change | D117: =IF(D116="","",D116-D113) -> 
A119: 33 | Q119: =IF(AND(ISBLANK(B119), ISBLANK(C119)), "X", "") -> X
C120: Change | D120: =IF(D119="","",D119-D116) -> 
A122: 34 | Q122: =IF(AND(ISBLANK(B122), ISBLANK(C122)), "X", "") -> X
C123: Change | D123: =IF(D122="","",D122-D119) -> 
A125: 35 | Q125: =IF(AND(ISBLANK(B125), ISBLANK(C125)), "X", "") -> X
C126: Change | D126: =IF(D125="","",D125-D122) -> 
A128: 36 | Q128: =IF(AND(ISBLANK(B128), ISBLANK(C128)), "X", "") -> X
C129: Change | D129: =IF(D128="","",D128-D125) -> 
R130: Page Break 2
A131: 37 | Q131: =IF(AND(ISBLANK(B131), ISBLANK(C131)), "X", "") -> X
C132: Change | D132: =IF(D131="","",D131-D128) -> 
A134: 38 | Q134: =IF(AND(ISBLANK(B134), ISBLANK(C134)), "X", "") -> X
C135: Change | D135: =IF(D134="","",D134-D131) -> 
A137: 39 | Q137: =IF(AND(ISBLANK(B137), ISBLANK(C137)), "X", "") -> X
C138: Change | D138: =IF(D137="","",D137-D134) -> 
A140: 40 | Q140: =IF(AND(ISBLANK(B140), ISBLANK(C140)), "X", "") -> X
C141: Change | D141: =IF(D140="","",D140-D137) -> 
A143: 41 | Q143: =IF(AND(ISBLANK(B143), ISBLANK(C143)), "X", "") -> X
C144: Change | D144: =IF(D143="","",D143-D140) -> 
A146: 42 | Q146: =IF(AND(ISBLANK(B146), ISBLANK(C146)), "X", "") -> X
C147: Change | D147: =IF(D146="","",D146-D143) -> 
A149: 43 | Q149: =IF(AND(ISBLANK(B149), ISBLANK(C149)), "X", "") -> X
C150: Change | D150: =IF(D149="","",D149-D146) -> 
A152: 44 | Q152: =IF(AND(ISBLANK(B152), ISBLANK(C152)), "X", "") -> X
C153: Change | D153: =IF(D152="","",D152-D149) -> 
A155: 45 | Q155: =IF(AND(ISBLANK(B155), ISBLANK(C155)), "X", "") -> X
C156: Change | D156: =IF(D155="","",D155-D152) -> 
A158: 46 | Q158: =IF(AND(ISBLANK(B158), ISBLANK(C158)), "X", "") -> X
C159: Change | D159: =IF(D158="","",D158-D155) -> 
A161: 47 | Q161: =IF(AND(ISBLANK(B161), ISBLANK(C161)), "X", "") -> X
C162: Change | D162: =IF(D161="","",D161-D158) -> 
A164: 48 | Q164: =IF(AND(ISBLANK(B164), ISBLANK(C164)), "X", "") -> X
C165: Change | D165: =IF(D164="","",D164-D161) -> 
A167: 49 | Q167: =IF(AND(ISBLANK(B167), ISBLANK(C167)), "X", "") -> X
C168: Change | D168: =IF(D167="","",D167-D164) -> 
A170: 50 | Q170: =IF(AND(ISBLANK(B170), ISBLANK(C170)), "X", "") -> X
C171: Change | D171: =IF(D170="","",D170-D167) -> 
A173: 51 | Q173: =IF(AND(ISBLANK(B173), ISBLANK(C173)), "X", "") -> X
C174: Change | D174: =IF(D173="","",D173-D170) -> 
A176: 52 | Q176: =IF(AND(ISBLANK(B176), ISBLANK(C176)), "X", "") -> X
C177: Change | D177: =IF(D176="","",D176-D173) -> 
A179: 53 | Q179: =IF(AND(ISBLANK(B179), ISBLANK(C179)), "X", "") -> X
C180: Change | D180: =IF(D179="","",D179-D176) -> 
R181: Page Break 3
A182: 54 | Q182: =IF(AND(ISBLANK(B182), ISBLANK(C182)), "X", "") -> X
C183: Change | D183: =IF(D182="","",D182-D179) -> 
A185: 55 | Q185: =IF(AND(ISBLANK(B185), ISBLANK(C185)), "X", "") -> X
C186: Change | D186: =IF(D185="","",D185-D182) -> 
A188: 56 | Q188: =IF(AND(ISBLANK(B188), ISBLANK(C188)), "X", "") -> X
C189: Change | D189: =IF(D188="","",D188-D185) -> 
A191: 57 | Q191: =IF(AND(ISBLANK(B191), ISBLANK(C191)), "X", "") -> X
C192: Change | D192: =IF(D191="","",D191-D188) -> 
A194: 58 | Q194: =IF(AND(ISBLANK(B194), ISBLANK(C194)), "X", "") -> X
C195: Change | D195: =IF(D194="","",D194-D191) -> 
A197: 59 | Q197: =IF(AND(ISBLANK(B197), ISBLANK(C197)), "X", "") -> X
C198: Change | D198: =IF(D197="","",D197-D194) -> 
A200: 60 | Q200: =IF(AND(ISBLANK(B200), ISBLANK(C200)), "X", "") -> X
C201: Change | D201: =IF(D200="","",D200-D197) -> 
R203: Page Break 4

Sheet Sheet4 (hidden)
